Workbook

Sheet Calcul
A1: Année de calcul | B1: 2013 | D1: temps début | E1: 10:48:37 | J1: =SUM(J4:J100) -> 0 | K1: =SUM(K4:K100) -> 0 | L1: =SUM(L4:L100) -> 0 | M1: =SUM(M4:M100) -> 0 | N1: =SUM(N4:N100) -> 0 | O1: =SUM(O4:O100) -> 0 | P1: =SUM(P4:P100) -> 0 | Q1: =SUM(Q4:Q100) -> 0 | R1: =SUM(R4:R100) -> 0 | S1: =SUM(S4:S100) -> 0 | T1: =SUM(T4:T100) -> 0 | U1: =SUM(U4:U100) -> 0 | V1: =SUM(V4:V100) -> 0 | W1: =SUM(W4:W100) -> 0 | X1: =SUM(X4:X100) -> 0 | Y1: =SUM(Y4:Y100) -> 0 | Z1: =SUM(Z4:Z100) -> 0 | AA1: =SUM(AA4:AA100) -> 0 | AB1: =SUM(AB4:AB100) -> 0 | AC1: =SUM(AC4:AC100) -> 0 | AD1: =SUM(AD4:AD100) -> 0 | AE1: =SUM(AE4:AE100) -> 0 | AF1: =SUM(AF4:AF100) -> 0
D2: temps fin | E2: 16:42:13 | M2: Non revalo | V2: Revalo
A3: Num_rentier | B3: Rentier | C3: date naissance | D3: date d'effet | E3: date de fin | F3: revalo_rentier | G3: Type_rente | H3: Annuité | I3: Limite | J3: Age | K3: duree effectuée | L3: duree restante | M3: Arrérages versés | N3: Partie réelle | O3: Partie estimée | P3: BE PM | Q3: BE partie réelle | R3: BE partie estimée | S3: Coût total | T3: coût partie réelle | U3: coût partie estimée | V3: Arrérages versés 1 | W3: Partie réelle 1 | X3: Partie estimée 1 | Y3: BE PM 1 | Z3: BE partie réelle 1 | AA3: BE partie estimée 1 | AB3: Coût total 1 | AC3: coût partie réelle 1 | AD3: coût partie estimée 1 | AE3: P.décès theorique non revalo | AF3: P.décès theorique revalo
A4: Filia-MAIF_S_212 | B4: Filia-MAIF_S_212_T | C4: 07/01/1999 | D4: 10/01/2007 | E4: 30/06/2009 | F4: Oui | G4: TEMPORAIRE | H4: 29,736 | I4: =IF(G4="VIAGERE",117,VALUE(RIGHT(E4,4))-VALUE(RIGHT(C4,4))) -> 10
A5: MAIF_S_3491 | B5: MAIF_S_3491_T | C5: 24/02/2007 | D5: 07/01/2011 | E5: 24/02/2017 | F5: Non | G5: TEMPORAIRE | H5: 10,949 | I5: 10
A6: MATMUT_S_166 | B6: MATMUT_S_166_T | C6: 01/11/1998 | D6: 01/09/2007 | E6: 31/12/2008 | F6: Non | G6: TEMPORAIRE | H6: 218,614 | I6: 10
A7: Macif_S_3343 | B7: Macif_S_3343_T | C7: 31/01/1984 | D7: 01/01/1989 | E7: 31/01/1996 | F7: Oui | G7: TEMPORAIRE | H7: 23,782 | I7: 12
A8: Filia-MAIF_S_245 | B8: Filia-MAIF_S_245_T | C8: 14/10/2004 | D8: 04/01/2010 | E8: 30/06/2016 | F8: Oui | G8: TEMPORAIRE | H8: 7,560 | I8: 12
A9: MATMUT_S_77 | B9: MATMUT_S_77_T | C9: 08/10/1989 | D9: 01/01/1998 | E9: 31/12/2001 | F9: Non | G9: TEMPORAIRE | H9: 56,979 | I9: 12
A10: Macif_S_3039 | B10: Macif_S_3039_T | C10: 14/03/1983 | D10: 01/01/1993 | E10: 14/03/1996 | F10: Non | G10: Viagere | H10: 19,890 | I10: 117
A11: MAIF_S_3120 | B11: MAIF_S_3120_T | C11: 20/11/1994 | D11: 31/12/2005 | E11: 08/01/2007 | F11: Oui | G11: TEMPORAIRE | H11: 116,493 | I11: 13
A12: MAIF_S_3347 | B12: MAIF_S_3347_T | C12: 08/11/2001 | D12: 07/01/2009 | E12: 31/12/2014 | F12: Oui | G12: TEMPORAIRE | H12: 9,464 | I12: 13
A13: MATMUT_S_117 | B13: MATMUT_S_117_T | C13: 27/04/1997 | D13: 01/04/2009 | E13: 31/12/2010 | F13: Non | G13: TEMPORAIRE | H13: 49,230 | I13: 13
A14: MATMUT_S_162 | B14: MATMUT_S_162_T | C14: 11/08/1994 | D14: 01/01/2006 | E14: 11/08/2008 | F14: Non | G14: viagere | H14: 70,008 | I14: 117
A15: Macif_S_362 | B15: Macif_S_362_T | C15: 31/01/2000 | D15: 02/02/2007 | E15: 31/01/2015 | F15: Oui | G15: TEMPORAIRE | H15: 23,820 | I15: 15
A16: Macif_S_981 | B16: Macif_S_981_T | C16: 25/10/2000 | D16: 19/05/2010 | E16: 25/10/2015 | F16: Non | G16: TEMPORAIRE | H16: 26,017 | I16: 15
A17: MATMUT_S_116 | B17: MATMUT_S_116_T | C17: 02/10/1996 | D17: 01/01/2009 | E17: 31/12/2011 | F17: Non | G17: TEMPORAIRE | H17: 8,760 | I17: 15
A18: MATMUT_S_153 | B18: MATMUT_S_153_T | C18: 28/03/1995 | D18: 01/01/2007 | E18: 31/03/2010 | F18: Non | G18: TEMPORAIRE | H18: 17,856 | I18: 15
A19: MATMUT_S_78 | B19: MATMUT_S_78_T | C19: 11/10/1992 | D19: 01/01/2006 | E19: 11/10/2007 | F19: Non | G19: TEMPORAIRE | H19: 20,924 | I19: 15
A20: Macif_S_1949 | B20: Macif_S_1949_T | C20: 17/07/1999 | D20: 03/07/2008 | E20: 17/07/2015 | F20: Oui | G20: TEMPORAIRE | H20: 3,600 | I20: 16
A21: Macif_S_784 | B21: Macif_S_784_T | C21: 11/10/1992 | D21: 09/10/2007 | E21: 10/11/2008 | F21: Non | G21: TEMPORAIRE | H21: 156,558 | I21: 16
A22: Filia-MAIF_S_49 | B22: Filia-MAIF_S_49_T | C22: 23/02/1994 | D22: 10/01/1995 | E22: 23/02/2010 | F22: Non | G22: TEMPORAIRE | H22: 2,135 | I22: 16
A23: MAIF_S_3217 | B23: MAIF_S_3217_T | C23: 09/09/1994 | D23: 04/01/2007 | E23: 31/03/2010 | F23: Oui | G23: TEMPORAIRE | H23: 51,960 | I23: 16
A24: MATMUT_S_154 | B24: MATMUT_S_154_T | C24: 15/02/1994 | D24: 01/01/2008 | E24: 31/12/2010 | F24: Non | G24: TEMPORAIRE | H24: 9,393 | I24: 16
A25: Macif_S_2140 | B25: Macif_S_2140_T | C25: 31/08/1979 | D25: 01/01/1992 | E25: 31/08/1996 | F25: Oui | G25: TEMPORAIRE | H25: 2,744 | I25: 17
A26: Macif_S_3618 | B26: Macif_S_3618_T | C26: 04/06/1983 | D26: 01/01/1992 | E26: 06/04/2000 | F26: Oui | G26: TEMPORAIRE | H26: 3,791 | I26: 17
A27: Macif_S_578 | B27: Macif_S_578_T | C27: 31/03/1997 | D27: 28/07/2009 | E27: 31/03/2014 | F27: Oui | G27: TEMPORAIRE | H27: 33,240 | I27: 17
A28: MAIF_S_3233 | B28: MAIF_S_3233_T | C28: 15/12/1994 | D28: 07/01/2007 | E28: 09/05/2011 | F28: Oui | G28: TEMPORAIRE | H28: 116,235 | I28: 17
A29: Macif_S_1314 | B29: Macif_S_1314_T | C29: 13/02/1979 | D29: 01/01/1991 | E29: 13/02/1997 | F29: Oui | G29: TEMPORAIRE | H29: 5,488 | I29: 18
A30: Macif_S_1826 | B30: Macif_S_1826_T | C30: 17/04/1996 | D30: 05/11/2010 | E30: 17/04/2014 | F30: Oui | G30: TEMPORAIRE | H30: 23,712 | I30: 18
A31: Macif_S_2356 | B31: Macif_S_2356_T | C31: 18/02/1998 | D31: 12/11/2008 | E31: 18/02/2016 | F31: Oui | G31: TEMPORAIRE | H31: 1,200 | I31: 18
A32: Macif_S_2557 | B32: Macif_S_2557_T | C32: 24/09/1991 | D32: 01/01/1993 | E32: 24/09/2009 | F32: Oui | G32: TEMPORAIRE | H32: 10,976 | I32: 18
A33: Macif_S_348 | B33: Macif_S_348_T | C33: 07/11/1996 | D33: 09/09/2002 | E33: 11/07/2014 | F33: Non | G33: TEMPORAIRE | H33: 12,196 | I33: 18
A34: Macif_S_755 | B34: Macif_S_755_T | C34: 07/12/1980 | D34: 01/01/1990 | E34: 12/07/1998 | F34: Oui | G34: TEMPORAIRE | H34: 4,025 | I34: 18
A35: Filia-MAIF_S_165 | B35: Filia-MAIF_S_165_T | C35: 21/03/1996 | D35: 07/01/2005 | E35: 30/09/2014 | F35: Oui | G35: TEMPORAIRE | H35: 6,000 | I35: 18
A36: Filia-MAIF_S_19 | B36: Filia-MAIF_S_19_T | C36: 23/08/1992 | D36: 08/01/2008 | E36: 23/08/2010 | F36: Oui | G36: TEMPORAIRE | H36: 14,058 | I36: 18
A37: Filia-MAIF_S_239 | B37: Filia-MAIF_S_239_T | C37: 23/03/2004 | D37: 10/01/2009 | E37: 23/03/2022 | F37: Oui | G37: TEMPORAIRE | H37: 21,840 | I37: 18
A38: Filia-MAIF_S_51 | B38: Filia-MAIF_S_51_T | C38: 13/10/1990 | D38: 08/01/1993 | E38: 13/10/2008 | F38: Non | G38: TEMPORAIRE | H38: 2,136 | I38: 18
A39: Filia-MAIF_S_52 | B39: Filia-MAIF_S_52_T | C39: 10/12/1985 | D39: 08/01/1993 | E39: 10/01/2003 | F39: Non | G39: TEMPORAIRE | H39: 3,870 | I39: 18
A40: MAIF_S_1074 | B40: MAIF_S_1074_T | C40: 11/09/1982 | D40: 09/01/1987 | E40: 11/01/2000 | F40: Oui | G40: TEMPORAIRE | H40: 3,074 | I40: 18
A41: MAIF_S_1109 | B41: MAIF_S_1109_T | C41: 14/05/1982 | D41: 18/10/1991 | E41: 14/05/2000 | F41: Non | G41: TEMPORAIRE | H41: 2,473 | I41: 18
A42: MAIF_S_1116 | B42: MAIF_S_1116_T | C42: 29/12/1982 | D42: 06/01/1989 | E42: 29/12/2000 | F42: Oui | G42: TEMPORAIRE | H42: 3,512 | I42: 18
A43: MAIF_S_1117 | B43: MAIF_S_1117_T | C43: 14/10/1988 | D43: 06/01/1989 | E43: 10/01/2006 | F43: Oui | G43: TEMPORAIRE | H43: 3,512 | I43: 18
A44: MAIF_S_1721 | B44: MAIF_S_1721_T | C44: 04/06/1988 | D44: 27/03/1991 | E44: 04/06/2006 | F44: Non | G44: TEMPORAIRE | H44: 1,888 | I44: 18
A45: MAIF_S_2498 | B45: MAIF_S_2498_T | C45: 25/08/1982 | D45: 10/01/1993 | E45: 09/01/2000 | F45: Oui | G45: TEMPORAIRE | H45: 3,292 | I45: 18
A46: MAIF_S_3201 | B46: MAIF_S_3201_T | C46: 20/02/1994 | D46: 01/01/2007 | E46: 20/02/2012 | F46: Oui | G46: TEMPORAIRE | H46: 8,800 | I46: 18
A47: MAIF_S_324 | B47: MAIF_S_324_T | C47: 24/08/1982 | D47: 16/03/1993 | E47: 24/08/2000 | F47: Non | G47: TEMPORAIRE | H47: 3,332 | I47: 18
A48: MAIF_S_409 | B48: MAIF_S_409_T | C48: 13/05/1983 | D48: 04/01/1996 | E48: 05/01/2001 | F48: Oui | G48: TEMPORAIRE | H48: 3,796 | I48: 18
A49: MAIF_S_410 | B49: MAIF_S_410_T | C49: 13/05/1983 | D49: 10/01/1996 | E49: 05/01/2001 | F49: Oui | G49: TEMPORAIRE | H49: 3,796 | I49: 18
A50: MAIF_S_619 | B50: MAIF_S_619_T | C50: 25/09/1984 | D50: 17/05/1988 | E50: 25/09/2002 | F50: Non | G50: TEMPORAIRE | H50: 1,627 | I50: 18

Sheet cas par cas
A1: 4 | B1: Date Calcul | C1: 2013-12-31 | D1: =annee_cal -> 2013 | E1: =12+ N("mois_calcul") -> 12
B2: date naissance | C2: =INDEX(Calcul!$C$4:$C$100,'cas par cas'!$E$19,0) -> 08/10/1989 | D2: =VALUE(RIGHT(C2,4)) -> 1989 | E2: =VALUE(MID(C2,4,2))+N("mois_naissance") -> 10
B3: date d'effet | C3: =INDEX(Calcul!$D$4:$D$100,num_ligne,0) -> 01/01/1998 | D3: =VALUE(RIGHT(C3,4)) -> 1998 | E3: =VALUE(MID(C3,4,2))+N("mois_effet") -> 1
B4: date de fin | C4: =IF(INDEX(Calcul!$E$4:$E$100,num_ligne,0)=0,"",INDEX(Calcul!$E$4:$E$100,num_ligne,0)) -> 31/12/2001 | D4: =IF(C4="",0,VALUE(RIGHT(C4,4))) -> 2001 | E4: =IF(C4="",0,VALUE(MID(C4,4,2)))+N("mois_fin") -> 12
B5: Limite | C5: =IF(Type_rente="viagere",117,D4-D2) -> 12 | S5: A -Avec revalo
B6: Type_rente | C6: =INDEX(Calcul!$G$4:$G$100,num_ligne,0) -> TEMPORAIRE | E6: Non Rev | F6: Résultat | T6: Revalo | U6: Résultat
B7: revalo_rentier | C7: =INDEX(Calcul!$F$4:$F$100,num_ligne,0) -> Non | E7: Arrérages versés | F7: =-F26 -> -430,928 | T7: Arrérages versés | U7: =-U26 -> -450,761
B8: Annuité | C8: =INDEX(Calcul!$H$4:$H$100,num_ligne,0) -> 56,979 | E8: Arrérage Partie réelle | F8: =-F27 -> -430,928 | T8: Arrérage Partie réelle | U8: =-U27 -> -450,761
B9: 60%*TME | C9: =60%*hypothèses!C6 -> 1.19% | E9: Arrérage partie estimée | F9: =-F28 -> 0 | T9: Arrérage partie estimée | U9: 0
B10: 60%*TME reva | C10: =(1+$C$9)/(1+reval_reel)-1 -> -1.04% | E10: BE PM | F10: =-I26-Q26 -> -427,500 | T10: BE PM | U10: =-X26-AF26 -> -446,935
B11: reval_reel | C11: =reval_reel -> 2.25% | E11: BE Partie réelle | F11: =-I27-Q27 -> -427,500 | T11: BE Partie réelle | U11: =-X27-AF27 -> -446,935
B12: revalo_corp | C12: =revalo_corp -> 3.00% | E12: BE partie estimée | F12: =-I28-Q28 -> 0 | T12: BE partie estimée | U12: =-X28-AF28 -> 0
B13: reval_corp _prov | C13: 2% | E13: Coût total | F13: =-O26-Q26 -> -427,500 | T13: Coût total | U13: =-AD26-AF26 -> -446,935
A14: A - Pas de revalo | E14: Coût Partie réelle | F14: =-O27-Q27 -> -427,500 | T14: Coût Partie réelle | U14: =-AD27-AF27 -> -446,935
E15: Coût partie estimée | F15: =-O28-Q28 -> 0 | T15: Coût partie estimée | U15: 0
A16: Proba décès thérique non revalo
A17: =IF(ISERROR(VLOOKUP($D$1-$D$2,table_nonRev,5,0)/VLOOKUP($D$3-$D$2,table_nonRev,5,0)),0,VLOOKUP($D$1-$D$2,table_nonRev,5,0)/VLOOKUP($D$3-$D$2,table_nonRev,5,0)) -> 0.00 | E17: Num_rentier | F17: Age | G17: Arrérage_cal | H17: duree effectuée | I17: duree restante
E18: MATMUT_S_77_T | F18: =annee_effet-annee_naiss -> 9 | G18: =Annuite_ini*(1+revalo_corp)^(Annee-annee_effet-1) -> 86,186 | H18: =IF(OR($C$4="",annee_fin>Annee),Annee-annee_effet+1,annee_fin-annee_effet+1) -> 4 | I18: =IF(annee_fin=0,120,IF(ABS(annee_fin)<Annee,0,annee_fin-Annee)) -> 0
A19: Proba décès thérique revalo | E19: =MATCH(exemple,Calcul!$B$4:$B$100,0) -> 6
A20: =IF(ISERROR(VLOOKUP($D$1-$D$2,table_revalo,5,0)/VLOOKUP($D$3-$D$2,table_revalo,5,0)),0,VLOOKUP($D$1-$D$2,table_revalo,5,0)/VLOOKUP($D$3-$D$2,table_revalo,5,0)) -> 0.00 | F20: Pas revalo | I20: Pas revalo | U20: Avec revalo | X20: Avec revalo
F21: BE PM | G21: =I26+Q26 -> 427,500 | I21: Coût total | J21: =O26+Q26 -> 427,500 | U21: BE PM | V21: =X26+AF26 -> 446,935 | X21: Coût total | Y21: =AD26+AF26 -> 446,935
A22: num_ligne age | F22: Partie réelle | G22: =I27+Q27 -> 427,500 | I22: Partie réelle | J22: =O27+Q27 -> 427,500 | U22: Partie réelle | V22: =X27+AF27 -> 446,935 | X22: Partie réelle | Y22: =AD27+AF27 -> 446,935
A23: =MATCH(age,table!$A$5:$A$195,0) -> 10 | F23: partie estimée | G23: =I28+Q28 -> 0 | I23: partie estimée | J23: =O28+Q28 -> 0 | U23: partie estimée | V23: =X28+AF28 -> 0 | X23: partie estimée | Y23: =AD28+AF28 -> 0
A25: Année | B25: Maturité | C25: taux d'actualisation | D25: Prob de survi en T / survi 2013 | E25: P€R non revalo | F25: Arrérages versées | G25: Frais Payés | H25: Arrérages y compris frais | I25: Coût BE sans MR | J25: PM clôture | K25: PM ouverture | L25: Var PM | M25: Produits financiers | N25: Résultat non actualisé | O25: Résultat actualisé | P25: SCR | Q25: Marge pour risque | S25: =D25 -> Prob de survi en T / survi 2013 | T25: =E25 -> P€R non revalo | U25: Arrérages versées | V25: Frais Payés | W25: Arrérages y compris frais | X25: Coût BE sans MR | Y25: PM clôture | Z25: PM ouverture | AA25: Var PM | AB25: Produits financiers | AC25: Résultat non actualisé | AD25: Résultat actualisé | AE25: SCR | AF25: Marge pour risque
F26: =SUM(F$30:F$152) -> 430,928 | G26: =SUM(G$30:G$152) -> 6,464 | H26: =SUM(H$30:H$152) -> 437,392 | I26: 427,241 | J26: 86,434 | K26: -86,434 | L26: 0 | M26: =SUM(M$30:M$152) -> -1,027 | N26: 436,365 | O26: 427,241 | P26: 4,322 | Q26: 259 | U26: =SUM(U$30:U$152) -> 450,761 | V26: =SUM(V$30:V$152) -> 6,761 | W26: =SUM(W$30:W$152) -> 457,522 | X26: 446,670 | Y26: 88,379 | Z26: -88,379 | AA26: 0 | AB26: -1,050 | AC26: 456,472 | AD26: 446,670 | AE26: 4,419 | AF26: =SUM(AF$30:AF$152) -> 265
E27: Partie réel | F27: =SUMPRODUCT(($B$30:$B$137<duree_effectuee+1)*(F30:F137)) -> 430,928 | G27: =SUMPRODUCT(($B$30:$B$137<duree_effectuee+1)*(G30:G137)) -> 6,464 | H27: =SUMPRODUCT(($B$30:$B$137<duree_effectuee+1)*(H30:H137)) -> 437,392 | I27: =SUMPRODUCT(($B$30:$B$137<duree_effectuee+1)*(I30:I137)) -> 427,241 | J27: =SUMPRODUCT(($B$30:$B$137<duree_effectuee+1)*(J30:J137)) -> 86,434 | K27: =SUMPRODUCT(($B$30:$B$137<duree_effectuee+2)*(K30:K137)) -> -86,434 | L27: =J27+K27 -> 0 | M27: =SUMPRODUCT(($B$30:$B$137<duree_effectuee+1)*(M30:M137)) -> -1,027 | N27: =SUMPRODUCT(($B$30:$B$137<duree_effectuee+1)*(N30:N137)) -> 436,365 | O27: =SUMPRODUCT(($B$30:$B$137<duree_effectuee+1)*(O30:O137)) -> 427,241 | P27: =SUMPRODUCT(($B$30:$B$137<duree_effectuee+1)*(P30:P137)) -> 4,322 | Q27: =SUMPRODUCT((B30:B137<duree_effectuee+1)*(P30:P137)*($C30:$C137))*taux_marge -> 259 | T27: Partie réel | U27: =SUMPRODUCT(($B$30:$B$137<duree_effectuee+1)*(U30:U137)) -> 450,761 | V27: =SUMPRODUCT(($B$30:$B$137<duree_effectuee+1)*(V30:V137)) -> 6,761 | W27: =SUMPRODUCT(($B$30:$B$137<duree_effectuee+1)*(W30:W137)) -> 457,522 | X27: =SUMPRODUCT(($B$30:$B$137<duree_effectuee+1)*(X30:X137)) -> 446,670 | Y27: =SUMPRODUCT(($B$30:$B$137<duree_effectuee+1)*(Y30:Y137)) -> 88,379 | Z27: =SUMPRODUCT(($B$30:$B$137<duree_effectuee+2)*(Z30:Z137)) -> -88,379 | AA27: =Y27+Z27 -> 0 | AB27: =SUMPRODUCT(($B$30:$B$137<duree_effectuee+1)*(AB30:AB137)) -> -1,050 | AC27: =SUMPRODUCT(($B$30:$B$137<duree_effectuee+1)*(AC30:AC137)) -> 456,472 | AD27: =SUMPRODUCT(($B$30:$B$137<duree_effectuee+1)*(AD30:AD137)) -> 446,670 | AE27: =SUMPRODUCT(($B$30:$B$137<duree_effectuee+1)*(AE30:AE137)) -> 4,419 | AF27: =SUMPRODUCT(($B30:$B137<duree_effectuee+1)*(AE30:AE137)*($C30:$C137))*taux_marge -> 265
E28: Partie estimée | F28: =F26-F27 -> 0 | G28: =G26-G27 -> 0 | H28: 0 | I28: 0 | J28: 0 | K28: 0 | L28: 0 | M28: =M26-M27 -> 0 | N28: 0 | O28: 0 | P28: 0 | Q28: 0 | T28: Partie estimée | U28: =U26-U27 -> 0 | V28: =V26-V27 -> 0 | W28: =W26-W27 -> 0 | X28: =X26-X27 -> 0 | Y28: =Y26-Y27 -> 0 | Z28: =Z26-Z27 -> 0 | AA28: =AA26-AA27 -> 0 | AB28: =AB26-AB27 -> 0 | AC28: =AC26-AC27 -> 0 | AD28: =AD26-AD27 -> 0 | AE28: =AE26-AE27 -> 0 | AF28: =AF26-AF27 -> 0
A30: Arrières | B30: 0 | C30: 100% | D30: =IF(OR(age+B30>190,IF(ISERROR(VLOOKUP(age+duree_effectuee,table_nonRev,2,0)),0,VLOOKUP(age+duree_effectuee,table_nonRev,2,0)=0)), 0, VLOOKUP(age+$B30,table_nonRev,2,0)/VLOOKUP(age+duree_effectuee,table_nonRev,2,0)) -> 1.00 | E30: =IF(age+B30<190,INDEX(P€R_nonRev,$A$23+B30,0),0) -> 0.99 | F30: =Arrerage_cal*(12-mois_effet+1)/12 -> 86,186 | G30: =F30*taux_frais -> 1,293 | H30: =F30+G30 -> 87,478 | I30: =H30*$C30 -> 87,478 | J30: =Arrerage_cal*(1+taux_frais)*E30 -> 86,434 | K30: 0 | L30: =J30+K30 -> 86,434 | M30: =K30*Taux_PF -> 0 | N30: =F30+G30+L30+M30 -> 173,912 | O30: =$C30*N30 -> 173,912 | P30: =J30*Taux_SCR -> 4,322 | Q30: =SUMPRODUCT(P30:P137,$C30:$C137)*taux_marge -> 259 | S30: =IF(OR(age+$B30>190,IF(ISERROR(VLOOKUP(age+duree_effectuee,table_revalo,2,0)),0,VLOOKUP(age+duree_effectuee,table_revalo,2,0)=0)), 0, VLOOKUP(age+$B30,table_revalo,2,0)/VLOOKUP(age+duree_effectuee,table_revalo,2,0)) -> 1.00 | T30: =IF(age+B30<190,INDEX(P€R_rev,$A$23+B30,0),0) -> 1.01 | U30: =Arrerage_cal*(12-mois_effet+1)/12 -> 86,186 | V30: =U30*taux_frais -> 1,293 | W30: =U30+V30 -> 87,478 | X30: =W30*$C30 -> 87,478 | Y30: =Arrerage_cal*(1+taux_frais)*T30 -> 88,379 | Z30: 0 | AA30: =Y30+Z30 -> 88,379 | AB30: =Z30*Taux_PF -> 0 | AC30: =U30+V30+AA30+AB30 -> 175,857 | AD30: =$C30*AC30 -> 175,857 | AE30: =Y30*Taux_SCR -> 4,419 | AF30: =SUMPRODUCT(AE30:AE137,$C30:$C137)*taux_marge -> 265
A31: =annee_cal+1 -> 2014 | B31: 1 | C31: 99% | D31: =IF(OR(age+B31>190,IF(ISERROR(VLOOKUP(age+duree_effectuee,table_nonRev,2,0)),0,VLOOKUP(age+duree_effectuee,table_nonRev,2,0)=0)), 0, VLOOKUP(age+$B31,table_nonRev,2,0)/VLOOKUP(age+duree_effectuee,table_nonRev,2,0)) -> 1.00 | E31: 0.00 | F31: =IF(AND(Type_rente="Temporaire",$B31> duree_effectuee+duree_restante),0,IF($B31<duree_effectuee+1,Arrerage_cal,D31*Arrerage_cal)) -> 86,186 | G31: 1,293 | H31: =F31+G31 -> 87,478 | I31: =H31*$C31 -> 86,451 | J31: =F31*(1+taux_frais)*E31 -> 0 | K31: =-J30 -> -86,434 | L31: =J31+K31 -> -86,434 | M31: -1,027 | N31: =F31+G31+L31+M31 -> 18 | O31: =$C31*N31 -> 17 | P31: 0 | S31: 1.00 | T31: 0.00 | U31: =IF(AND(Type_rente="TEMPORAIRE",$B31> duree_effectuee+duree_restante),0,IF($B31<duree_effectuee+1,Arrerage_cal*(1+reval_reel)^$B31,S31*Arrerage_cal*(1+reval_reel)^$B31)) -> 88,125 | V31: 1,322 | W31: =U31+V31 -> 89,447 | X31: =W31*$C31 -> 88,396 | Y31: =U31*(1+taux_frais)*T31 -> 0 | Z31: =-Y30 -> -88,379 | AA31: =Y31+Z31 -> -88,379 | AB31: -1,050 | AC31: =U31+V31+AA31+AB31 -> 18 | AD31: =$C31*AC31 -> 18 | AE31: =Y31*Taux_SCR -> 0
A32: =A31+1 -> 2015 | B32: =B31+1 -> 2 | C32: 98% | D32: 1.00 | E32: 0.00 | F32: 86,186 | G32: 1,293 | H32: 87,478 | I32: 85,436 | J32: =F32*(1+taux_frais)*E32 -> 0 | K32: =-J31 -> 0 | L32: 0 | M32: 0 | N32: 87,478 | O32: 85,436 | P32: 0 | S32: 1.00 | T32: 0.00 | U32: 90,108 | V32: 1,352 | W32: 91,459 | X32: 89,324 | Y32: 0 | Z32: =-Y31 -> 0 | AA32: 0 | AB32: 0 | AC32: 91,459 | AD32: 89,324 | AE32: 0
A33: 2016 | B33: 3 | C33: 97% | D33: 1.00 | E33: 0.00 | F33: 86,186 | G33: 1,293 | H33: 87,478 | I33: 84,433 | J33: 0 | K33: 0 | L33: 0 | M33: 0 | N33: 87,478 | O33: 84,433 | P33: 0 | S33: 1.00 | T33: 0.00 | U33: 92,135 | V33: 1,382 | W33: 93,517 | X33: 90,262 | Y33: 0 | Z33: 0 | AA33: 0 | AB33: 0 | AC33: 93,517 | AD33: 90,262 | AE33: 0
A34: 2017 | B34: 4 | C34: 95% | D34: 1.00 | E34: 0.00 | F34: 86,186 | G34: 1,293 | H34: 87,478 | I34: 83,442 | J34: 0 | K34: 0 | L34: 0 | M34: 0 | N34: 87,478 | O34: 83,442 | P34: 0 | S34: 1.00 | T34: 0.00 | U34: 94,208 | V34: 1,413 | W34: 95,621 | X34: 91,209 | Y34: 0 | Z34: 0 | AA34: 0 | AB34: 0 | AC34: 95,621 | AD34: 91,209 | AE34: 0
A35: 2018 | B35: 5 | C35: 94% | D35: 1.00 | E35: 0.00 | F35: 0 | G35: 0 | H35: 0 | I35: 0 | J35: 0 | K35: 0 | L35: 0 | M35: =K35*Taux_PF -> 0 | N35: 0 | O35: 0 | P35: 0 | S35: 1.00 | T35: 0.00 | U35: 0 | V35: 0 | W35: 0 | X35: 0 | Y35: 0 | Z35: 0 | AA35: 0 | AB35: 0 | AC35: 0 | AD35: 0 | AE35: 0
A36: 2019 | B36: 6 | C36: 93% | D36: 1.00 | E36: 0.00 | F36: 0 | G36: 0 | H36: 0 | I36: 0 | J36: 0 | K36: 0 | L36: 0 | M36: 0 | N36: 0 | O36: 0 | P36: 0 | S36: 1.00 | T36: 0.00 | U36: 0 | V36: 0 | W36: 0 | X36: 0 | Y36: 0 | Z36: 0 | AA36: 0 | AB36: 0 | AC36: 0 | AD36: 0 | AE36: 0 | AK36: =AG37*AI36 -> 0
A37: 2020 | B37: 7 | C37: 92% | D37: 1.00 | E37: 0.00 | F37: 0 | G37: 0 | H37: 0 | I37: 0 | J37: 0 | K37: 0 | L37: 0 | M37: 0 | N37: 0 | O37: 0 | P37: 0 | S37: 1.00 | T37: 0.00 | U37: 0 | V37: 0 | W37: 0 | X37: 0 | Y37: 0 | Z37: 0 | AA37: 0 | AB37: 0 | AC37: 0 | AD37: 0 | AE37: 0 | AK37: 0
A38: 2021 | B38: 8 | C38: 91% | D38: 1.00 | E38: 0.00 | F38: 0 | G38: 0 | H38: 0 | I38: 0 | J38: 0 | K38: 0 | L38: 0 | M38: 0 | N38: 0 | O38: 0 | P38: 0 | S38: 1.00 | T38: 0.00 | U38: 0 | V38: 0 | W38: 0 | X38: 0 | Y38: 0 | Z38: 0 | AA38: 0 | AB38: 0 | AC38: 0 | AD38: 0 | AE38: 0 | AK38: 0
A39: 2022 | B39: 9 | C39: 90% | D39: 1.00 | E39: 0.00 | F39: 0 | G39: 0 | H39: 0 | I39: 0 | J39: 0 | K39: 0 | L39: 0 | M39: 0 | N39: 0 | O39: 0 | P39: 0 | S39: 1.00 | T39: 0.00 | U39: 0 | V39: 0 | W39: 0 | X39: 0 | Y39: 0 | Z39: 0 | AA39: 0 | AB39: 0 | AC39: 0 | AD39: 0 | AE39: 0 | AK39: 0
A40: 2023 | B40: 10 | C40: 89% | D40: 1.00 | E40: 0.00 | F40: 0 | G40: 0 | H40: 0 | I40: 0 | J40: 0 | K40: 0 | L40: 0 | M40: 0 | N40: 0 | O40: 0 | P40: 0 | S40: 1.00 | T40: 0.00 | U40: 0 | V40: 0 | W40: 0 | X40: 0 | Y40: 0 | Z40: 0 | AA40: 0 | AB40: 0 | AC40: 0 | AD40: 0 | AE40: 0 | AK40: 0
A41: 2024 | B41: 11 | C41: 88% | D41: 0.99 | E41: 0.00 | F41: 0 | G41: 0 | H41: 0 | I41: 0 | J41: 0 | K41: 0 | L41: 0 | M41: 0 | N41: 0 | O41: 0 | P41: 0 | S41: 0.99 | T41: 0.00 | U41: 0 | V41: 0 | W41: 0 | X41: 0 | Y41: 0 | Z41: 0 | AA41: 0 | AB41: 0 | AC41: 0 | AD41: 0 | AE41: 0 | AK41: 0
A42: 2025 | B42: 12 | C42: 87% | D42: 0.99 | E42: 0.00 | F42: 0 | G42: 0 | H42: 0 | I42: 0 | J42: 0 | K42: 0 | L42: 0 | M42: 0 | N42: 0 | O42: 0 | P42: 0 | S42: 0.99 | T42: 0.00 | U42: 0 | V42: 0 | W42: 0 | X42: 0 | Y42: 0 | Z42: 0 | AA42: 0 | AB42: 0 | AC42: 0 | AD42: 0 | AE42: 0 | AK42: 0
A43: 2026 | B43: 13 | C43: 86% | D43: 0.99 | E43: 0.00 | F43: 0 | G43: 0 | H43: 0 | I43: 0 | J43: 0 | K43: 0 | L43: 0 | M43: 0 | N43: 0 | O43: 0 | P43: 0 | S43: 0.99 | T43: 0.00 | U43: 0 | V43: 0 | W43: 0 | X43: 0 | Y43: 0 | Z43: 0 | AA43: 0 | AB43: 0 | AC43: 0 | AD43: 0 | AE43: 0 | AK43: 0
A44: 2027 | B44: 14 | C44: 85% | D44: 0.99 | E44: 0.00 | F44: 0 | G44: 0 | H44: 0 | I44: 0 | J44: 0 | K44: 0 | L44: 0 | M44: 0 | N44: 0 | O44: 0 | P44: 0 | S44: 0.99 | T44: 0.00 | U44: 0 | V44: 0 | W44: 0 | X44: 0 | Y44: 0 | Z44: 0 | AA44: 0 | AB44: 0 | AC44: 0 | AD44: 0 | AE44: 0 | AK44: 0
A45: 2028 | B45: 15 | C45: 84% | D45: 0.99 | E45: 0.00 | F45: 0 | G45: 0 | H45: 0 | I45: 0 | J45: 0 | K45: 0 | L45: 0 | M45: 0 | N45: 0 | O45: 0 | P45: 0 | S45: 0.99 | T45: 0.00 | U45: 0 | V45: 0 | W45: 0 | X45: 0 | Y45: 0 | Z45: 0 | AA45: 0 | AB45: 0 | AC45: 0 | AD45: 0 | AE45: 0 | AK45: 0
A46: 2029 | B46: 16 | C46: 83% | D46: 0.99 | E46: 0.00 | F46: 0 | G46: 0 | H46: 0 | I46: 0 | J46: 0 | K46: 0 | L46: 0 | M46: 0 | N46: 0 | O46: 0 | P46: 0 | S46: 0.99 | T46: 0.00 | U46: 0 | V46: 0 | W46: 0 | X46: 0 | Y46: 0 | Z46: 0 | AA46: 0 | AB46: 0 | AC46: 0 | AD46: 0 | AE46: 0 | AK46: 0
A47: 2030 | B47: 17 | C47: 82% | D47: 0.99 | E47: 0.00 | F47: 0 | G47: 0 | H47: 0 | I47: 0 | J47: 0 | K47: 0 | L47: 0 | M47: 0 | N47: 0 | O47: 0 | P47: 0 | S47: 0.99 | T47: 0.00 | U47: 0 | V47: 0 | W47: 0 | X47: 0 | Y47: 0 | Z47: 0 | AA47: 0 | AB47: 0 | AC47: 0 | AD47: 0 | AE47: 0 | AK47: 0
A48: =A47+1 -> 2031 | B48: 18 | C48: 81% | D48: 0.98 | E48: 0.00 | F48: 0 | G48: 0 | H48: 0 | I48: 0 | J48: 0 | K48: 0 | L48: 0 | M48: 0 | N48: 0 | O48: 0 | P48: 0 | S48: 0.98 | T48: 0.00 | U48: 0 | V48: 0 | W48: 0 | X48: 0 | Y48: 0 | Z48: 0 | AA48: 0 | AB48: 0 | AC48: 0 | AD48: 0 | AE48: 0 | AK48: 0
A49: 2032 | B49: 19 | C49: 80% | D49: 0.98 | E49: 0.00 | F49: 0 | G49: 0 | H49: 0 | I49: 0 | J49: 0 | K49: 0 | L49: 0 | M49: 0 | N49: 0 | O49: 0 | P49: 0 | S49: 0.98 | T49: 0.00 | U49: 0 | V49: 0 | W49: 0 | X49: 0 | Y49: 0 | Z49: 0 | AA49: 0 | AB49: 0 | AC49: 0 | AD49: 0 | AE49: 0 | AK49: 0
A50: 2033 | B50: 20 | C50: 79% | D50: 0.98 | E50: 0.00 | F50: 0 | G50: 0 | H50: 0 | I50: 0 | J50: 0 | K50: 0 | L50: 0 | M50: 0 | N50: 0 | O50: 0 | P50: 0 | S50: 0.98 | T50: 0.00 | U50: 0 | V50: 0 | W50: 0 | X50: 0 | Y50: 0 | Z50: 0 | AA50: 0 | AB50: 0 | AC50: 0 | AD50: 0 | AE50: 0 | AK50: 0
A51: 2034 | B51: 21 | C51: 78% | D51: 0.98 | E51: 0.00 | F51: 0 | G51: 0 | H51: 0 | I51: 0 | J51: 0 | K51: 0 | L51: 0 | M51: 0 | N51: 0 | O51: 0 | P51: 0 | S51: 0.98 | T51: 0.00 | U51: 0 | V51: 0 | W51: 0 | X51: 0 | Y51: 0 | Z51: 0 | AA51: 0 | AB51: 0 | AC51: 0 | AD51: 0 | AE51: 0 | AK51: 0
A52: 2035 | B52: 22 | C52: 77% | D52: 0.98 | E52: 0.00 | F52: 0 | G52: 0 | H52: 0 | I52: 0 | J52: 0 | K52: 0 | L52: 0 | M52: 0 | N52: 0 | O52: 0 | P52: 0 | S52: 0.98 | T52: 0.00 | U52: 0 | V52: 0 | W52: 0 | X52: 0 | Y52: 0 | Z52: 0 | AA52: 0 | AB52: 0 | AC52: 0 | AD52: 0 | AE52: 0 | AK52: 0
A53: 2036 | B53: 23 | C53: 76% | D53: 0.98 | E53: 0.00 | F53: 0 | G53: 0 | H53: 0 | I53: 0 | J53: 0 | K53: 0 | L53: 0 | M53: 0 | N53: 0 | O53: 0 | P53: 0 | S53: 0.98 | T53: 0.00 | U53: 0 | V53: 0 | W53: 0 | X53: 0 | Y53: 0 | Z53: 0 | AA53: 0 | AB53: 0 | AC53: 0 | AD53: 0 | AE53: 0 | AK53: 0
A54: 2037 | B54: 24 | C54: 75% | D54: 0.97 | E54: 0.00 | F54: 0 | G54: 0 | H54: 0 | I54: 0 | J54: 0 | K54: 0 | L54: 0 | M54: 0 | N54: 0 | O54: 0 | P54: 0 | S54: 0.97 | T54: 0.00 | U54: 0 | V54: 0 | W54: 0 | X54: 0 | Y54: 0 | Z54: 0 | AA54: 0 | AB54: 0 | AC54: 0 | AD54: 0 | AE54: 0 | AK54: 0
A55: 2038 | B55: 25 | C55: 74% | D55: 0.97 | E55: 0.00 | F55: 0 | G55: 0 | H55: 0 | I55: 0 | J55: 0 | K55: 0 | L55: 0 | M55: 0 | N55: 0 | O55: 0 | P55: 0 | S55: 0.97 | T55: 0.00 | U55: 0 | V55: 0 | W55: 0 | X55: 0 | Y55: 0 | Z55: 0 | AA55: 0 | AB55: 0 | AC55: 0 | AD55: 0 | AE55: 0 | AK55: 0
A56: 2039 | B56: 26 | C56: 74% | D56: 0.97 | E56: 0.00 | F56: 0 | G56: 0 | H56: 0 | I56: 0 | J56: 0 | K56: 0 | L56: 0 | M56: 0 | N56: 0 | O56: 0 | P56: 0 | S56: 0.97 | T56: 0.00 | U56: 0 | V56: 0 | W56: 0 | X56: 0 | Y56: 0 | Z56: 0 | AA56: 0 | AB56: 0 | AC56: 0 | AD56: 0 | AE56: 0 | AK56: 0
A57: 2040 | B57: 27 | C57: 73% | D57: 0.97 | E57: 0.00 | F57: 0 | G57: 0 | H57: 0 | I57: 0 | J57: 0 | K57: 0 | L57: 0 | M57: 0 | N57: 0 | O57: 0 | P57: 0 | S57: 0.97 | T57: 0.00 | U57: 0 | V57: 0 | W57: 0 | X57: 0 | Y57: 0 | Z57: 0 | AA57: 0 | AB57: 0 | AC57: 0 | AD57: 0 | AE57: 0 | AK57: 0
A58: 2041 | B58: 28 | C58: 72% | D58: 0.97 | E58: 0.00 | F58: 0 | G58: 0 | H58: 0 | I58: 0 | J58: 0 | K58: 0 | L58: 0 | M58: 0 | N58: 0 | O58: 0 | P58: 0 | S58: 0.97 | T58: 0.00 | U58: 0 | V58: 0 | W58: 0 | X58: 0 | Y58: 0 | Z58: 0 | AA58: 0 | AB58: 0 | AC58: 0 | AD58: 0 | AE58: 0 | AK58: 0
A59: 2042 | B59: 29 | C59: 71% | D59: 0.96 | E59: 0.00 | F59: 0 | G59: 0 | H59: 0 | I59: 0 | J59: 0 | K59: 0 | L59: 0 | M59: 0 | N59: 0 | O59: 0 | P59: 0 | S59: 0.96 | T59: 0.00 | U59: 0 | V59: 0 | W59: 0 | X59: 0 | Y59: 0 | Z59: 0 | AA59: 0 | AB59: 0 | AC59: 0 | AD59: 0 | AE59: 0 | AK59: 0
A60: 2043 | B60: 30 | C60: 70% | D60: 0.96 | E60: 0.00 | F60: 0 | G60: 0 | H60: 0 | I60: 0 | J60: 0 | K60: 0 | L60: 0 | M60: 0 | N60: 0 | O60: 0 | P60: 0 | S60: 0.96 | T60: 0.00 | U60: 0 | V60: 0 | W60: 0 | X60: 0 | Y60: 0 | Z60: 0 | AA60: 0 | AB60: 0 | AC60: 0 | AD60: 0 | AE60: 0 | AK60: 0
A61: 2044 | B61: 31 | C61: 69% | D61: 0.96 | E61: 0.00 | F61: 0 | G61: 0 | H61: 0 | I61: 0 | J61: 0 | K61: 0 | L61: 0 | M61: 0 | N61: 0 | O61: 0 | P61: 0 | S61: 0.96 | T61: 0.00 | U61: 0 | V61: 0 | W61: 0 | X61: 0 | Y61: 0 | Z61: 0 | AA61: 0 | AB61: 0 | AC61: 0 | AD61: 0 | AE61: 0 | AK61: 0
A62: 2045 | B62: 32 | C62: 69% | D62: =IF(OR(age+B62>190,IF(ISERROR(VLOOKUP(age+duree_effectuee,table_nonRev,2,0)),0,VLOOKUP(age+duree_effectuee,table_nonRev,2,0)=0)), 0, VLOOKUP(age+$B62,table_nonRev,2,0)/VLOOKUP(age+duree_effectuee,table_nonRev,2,0)) -> 0.96 | E62: =IF(age+B62<190,INDEX(P€R_nonRev,$A$23+B62,0),0) -> 0.00 | F62: 0 | G62: =F62*taux_frais -> 0 | H62: 0 | I62: 0 | J62: 0 | K62: 0 | L62: 0 | M62: =K62*Taux_PF -> 0 | N62: 0 | O62: 0 | P62: 0 | S62: =IF(OR(age+$B62>190,IF(ISERROR(VLOOKUP(age+duree_effectuee,table_revalo,2,0)),0,VLOOKUP(age+duree_effectuee,table_revalo,2,0)=0)), 0, VLOOKUP(age+$B62,table_revalo,2,0)/VLOOKUP(age+duree_effectuee,table_revalo,2,0)) -> 0.96 | T62: =IF(age+B62<190,INDEX(P€R_rev,$A$23+B62,0),0) -> 0.00 | U62: 0 | V62: 0 | W62: 0 | X62: 0 | Y62: 0 | Z62: 0 | AA62: 0 | AB62: =Z62*Taux_PF -> 0 | AC62: 0 | AD62: 0 | AE62: 0 | AK62: 0
A63: 2046 | B63: 33 | C63: 68% | D63: 0.95 | E63: 0.00 | F63: =IF(AND(Type_rente="Temporaire",$B63> duree_effectuee+duree_restante),0,IF($B63<duree_effectuee+1,Arrerage_cal,D63*Arrerage_cal)) -> 0 | G63: 0 | H63: 0 | I63: 0 | J63: =F63*(1+taux_frais)*E63 -> 0 | K63: 0 | L63: 0 | M63: 0 | N63: 0 | O63: 0 | P63: 0 | S63: 0.95 | T63: 0.00 | U63: =IF(AND(Type_rente="TEMPORAIRE",$B63> duree_effectuee+duree_restante),0,IF($B63<duree_effectuee+1,Arrerage_cal*(1+reval_reel)^$B63,S63*Arrerage_cal*(1+reval_reel)^$B63)) -> 0 | V63: 0 | W63: 0 | X63: 0 | Y63: =U63*(1+taux_frais)*T63 -> 0 | Z63: 0 | AA63: 0 | AB63: 0 | AC63: 0 | AD63: 0 | AE63: 0 | AK63: 0
A64: =A63+1 -> 2047 | B64: 34 | C64: 67% | D64: 0.95 | E64: 0.00 | F64: 0 | G64: 0 | H64: 0 | I64: 0 | J64: 0 | K64: 0 | L64: 0 | M64: 0 | N64: 0 | O64: 0 | P64: 0 | S64: 0.95 | T64: 0.00 | U64: 0 | V64: 0 | W64: 0 | X64: 0 | Y64: 0 | Z64: 0 | AA64: 0 | AB64: 0 | AC64: 0 | AD64: 0 | AE64: 0 | AK64: 0
A65: 2048 | B65: 35 | C65: 66% | D65: 0.95 | E65: 0.00 | F65: 0 | G65: 0 | H65: 0 | I65: 0 | J65: 0 | K65: 0 | L65: 0 | M65: 0 | N65: 0 | O65: 0 | P65: 0 | S65: 0.95 | T65: 0.00 | U65: 0 | V65: 0 | W65: 0 | X65: 0 | Y65: 0 | Z65: 0 | AA65: 0 | AB65: 0 | AC65: 0 | AD65: 0 | AE65: 0 | AK65: 0
A66: 2049 | B66: 36 | C66: 65% | D66: 0.94 | E66: 0.00 | F66: 0 | G66: 0 | H66: 0 | I66: 0 | J66: 0 | K66: 0 | L66: 0 | M66: 0 | N66: 0 | O66: 0 | P66: 0 | S66: 0.94 | T66: 0.00 | U66: 0 | V66: 0 | W66: 0 | X66: 0 | Y66: 0 | Z66: 0 | AA66: 0 | AB66: 0 | AC66: 0 | AD66: 0 | AE66: 0 | AK66: 0
A67: 2050 | B67: 37 | C67: 65% | D67: 0.94 | E67: 0.00 | F67: 0 | G67: 0 | H67: 0 | I67: 0 | J67: 0 | K67: 0 | L67: 0 | M67: 0 | N67: 0 | O67: 0 | P67: 0 | S67: 0.94 | T67: 0.00 | U67: 0 | V67: 0 | W67: 0 | X67: 0 | Y67: 0 | Z67: 0 | AA67: 0 | AB67: 0 | AC67: 0 | AD67: 0 | AE67: 0 | AK67: 0
A68: 2051 | B68: 38 | C68: 64% | D68: 0.93 | E68: 0.00 | F68: 0 | G68: 0 | H68: 0 | I68: 0 | J68: 0 | K68: 0 | L68: 0 | M68: 0 | N68: 0 | O68: 0 | P68: 0 | S68: 0.93 | T68: 0.00 | U68: 0 | V68: 0 | W68: 0 | X68: 0 | Y68: 0 | Z68: 0 | AA68: 0 | AB68: 0 | AC68: 0 | AD68: 0 | AE68: 0 | AK68: =AG69*AI68 -> 0
A69: 2052 | B69: 39 | C69: 63% | D69: 0.93 | E69: 0.00 | F69: 0 | G69: 0 | H69: 0 | I69: 0 | J69: 0 | K69: 0 | L69: 0 | M69: 0 | N69: 0 | O69: 0 | P69: 0 | S69: 0.93 | T69: 0.00 | U69: 0 | V69: 0 | W69: 0 | X69: 0 | Y69: 0 | Z69: 0 | AA69: 0 | AB69: 0 | AC69: 0 | AD69: 0 | AE69: 0 | AK69: 0
A70: 2053 | B70: 40 | C70: 62% | D70: 0.92 | E70: 0.00 | F70: 0 | G70: 0 | H70: 0 | I70: 0 | J70: 0 | K70: 0 | L70: 0 | M70: 0 | N70: 0 | O70: 0 | P70: 0 | S70: 0.92 | T70: 0.00 | U70: 0 | V70: 0 | W70: 0 | X70: 0 | Y70: 0 | Z70: 0 | AA70: 0 | AB70: 0 | AC70: 0 | AD70: 0 | AE70: 0 | AK70: 0
A71: 2054 | B71: 41 | C71: 62% | D71: 0.92 | E71: 0.00 | F71: 0 | G71: 0 | H71: 0 | I71: 0 | J71: 0 | K71: 0 | L71: 0 | M71: 0 | N71: 0 | O71: 0 | P71: 0 | S71: 0.92 | T71: 0.00 | U71: 0 | V71: 0 | W71: 0 | X71: 0 | Y71: 0 | Z71: 0 | AA71: 0 | AB71: 0 | AC71: 0 | AD71: 0 | AE71: 0 | AK71: 0
A72: 2055 | B72: 42 | C72: 61% | D72: 0.91 | E72: 0.00 | F72: 0 | G72: 0 | H72: 0 | I72: 0 | J72: 0 | K72: 0 | L72: 0 | M72: 0 | N72: 0 | O72: 0 | P72: 0 | S72: 0.91 | T72: 0.00 | U72: 0 | V72: 0 | W72: 0 | X72: 0 | Y72: 0 | Z72: 0 | AA72: 0 | AB72: 0 | AC72: 0 | AD72: 0 | AE72: 0 | AK72: 0
A73: 2056 | B73: 43 | C73: 60% | D73: 0.91 | E73: 0.00 | F73: 0 | G73: 0 | H73: 0 | I73: 0 | J73: 0 | K73: 0 | L73: 0 | M73: 0 | N73: 0 | O73: 0 | P73: 0 | S73: 0.91 | T73: 0.00 | U73: 0 | V73: 0 | W73: 0 | X73: 0 | Y73: 0 | Z73: 0 | AA73: 0 | AB73: 0 | AC73: 0 | AD73: 0 | AE73: 0 | AK73: 0
A74: 2057 | B74: 44 | C74: 59% | D74: 0.90 | E74: 0.00 | F74: 0 | G74: 0 | H74: 0 | I74: 0 | J74: 0 | K74: 0 | L74: 0 | M74: 0 | N74: 0 | O74: 0 | P74: 0 | S74: 0.90 | T74: 0.00 | U74: 0 | V74: 0 | W74: 0 | X74: 0 | Y74: 0 | Z74: 0 | AA74: 0 | AB74: 0 | AC74: 0 | AD74: 0 | AE74: 0 | AK74: 0
A75: 2058 | B75: 45 | C75: 59% | D75: 0.89 | E75: 0.00 | F75: 0 | G75: 0 | H75: 0 | I75: 0 | J75: 0 | K75: 0 | L75: 0 | M75: 0 | N75: 0 | O75: 0 | P75: 0 | S75: 0.89 | T75: 0.00 | U75: 0 | V75: 0 | W75: 0 | X75: 0 | Y75: 0 | Z75: 0 | AA75: 0 | AB75: 0 | AC75: 0 | AD75: 0 | AE75: 0 | AK75: 0
A76: 2059 | B76: 46 | C76: 58% | D76: 0.88 | E76: 0.00 | F76: 0 | G76: 0 | H76: 0 | I76: 0 | J76: 0 | K76: 0 | L76: 0 | M76: 0 | N76: 0 | O76: 0 | P76: 0 | S76: 0.88 | T76: 0.00 | U76: 0 | V76: 0 | W76: 0 | X76: 0 | Y76: 0 | Z76: 0 | AA76: 0 | AB76: 0 | AC76: 0 | AD76: 0 | AE76: 0 | AK76: 0
A77: 2060 | B77: 47 | C77: 57% | D77: 0.87 | E77: 0.00 | F77: 0 | G77: 0 | H77: 0 | I77: 0 | J77: 0 | K77: 0 | L77: 0 | M77: 0 | N77: 0 | O77: 0 | P77: 0 | S77: 0.87 | T77: 0.00 | U77: 0 | V77: 0 | W77: 0 | X77: 0 | Y77: 0 | Z77: 0 | AA77: 0 | AB77: 0 | AC77: 0 | AD77: 0 | AE77: 0 | AK77: 0
A78: 2061 | B78: 48 | C78: 57% | D78: 0.86 | E78: 0.00 | F78: 0 | G78: 0 | H78: 0 | I78: 0 | J78: 0 | K78: 0 | L78: 0 | M78: 0 | N78: 0 | O78: 0 | P78: 0 | S78: 0.86 | T78: 0.00 | U78: 0 | V78: 0 | W78: 0 | X78: 0 | Y78: 0 | Z78: 0 | AA78: 0 | AB78: 0 | AC78: 0 | AD78: 0 | AE78: 0 | AK78: 0
A79: 2062 | B79: 49 | C79: 56% | D79: 0.85 | E79: 0.00 | F79: 0 | G79: 0 | H79: 0 | I79: 0 | J79: 0 | K79: 0 | L79: 0 | M79: 0 | N79: 0 | O79: 0 | P79: 0 | S79: 0.85 | T79: 0.00 | U79: 0 | V79: 0 | W79: 0 | X79: 0 | Y79: 0 | Z79: 0 | AA79: 0 | AB79: 0 | AC79: 0 | AD79: 0 | AE79: 0 | AK79: 0
A80: =A79+1 -> 2063 | B80: 50 | C80: 55% | D80: 0.84 | E80: 0.00 | F80: 0 | G80: 0 | H80: 0 | I80: 0 | J80: 0 | K80: 0 | L80: 0 | M80: 0 | N80: 0 | O80: 0 | P80: 0 | S80: 0.84 | T80: 0.00 | U80: 0 | V80: 0 | W80: 0 | X80: 0 | Y80: 0 | Z80: 0 | AA80: 0 | AB80: 0 | AC80: 0 | AD80: 0 | AE80: 0 | AK80: 0
A81: 2064 | B81: 51 | C81: 55% | D81: 0.83 | E81: 0.00 | F81: 0 | G81: 0 | H81: 0 | I81: 0 | J81: 0 | K81: 0 | L81: 0 | M81: 0 | N81: 0 | O81: 0 | P81: 0 | S81: 0.83 | T81: 0.00 | U81: 0 | V81: 0 | W81: 0 | X81: 0 | Y81: 0 | Z81: 0 | AA81: 0 | AB81: 0 | AC81: 0 | AD81: 0 | AE81: 0 | AK81: 0
A82: 2065 | B82: 52 | C82: 54% | D82: 0.82 | E82: 0.00 | F82: 0 | G82: 0 | H82: 0 | I82: 0 | J82: 0 | K82: 0 | L82: 0 | M82: 0 | N82: 0 | O82: 0 | P82: 0 | S82: 0.82 | T82: 0.00 | U82: 0 | V82: 0 | W82: 0 | X82: 0 | Y82: 0 | Z82: 0 | AA82: 0 | AB82: 0 | AC82: 0 | AD82: 0 | AE82: 0 | AK82: 0
A83: 2066 | B83: 53 | C83: 53% | D83: 0.80 | E83: 0.00 | F83: 0 | G83: 0 | H83: 0 | I83: 0 | J83: 0 | K83: 0 | L83: 0 | M83: 0 | N83: 0 | O83: 0 | P83: 0 | S83: 0.80 | T83: 0.00 | U83: 0 | V83: 0 | W83: 0 | X83: 0 | Y83: 0 | Z83: 0 | AA83: 0 | AB83: 0 | AC83: 0 | AD83: 0 | AE83: 0 | AK83: 0
A84: 2067 | B84: 54 | C84: 53% | D84: 0.79 | E84: 0.00 | F84: 0 | G84: 0 | H84: 0 | I84: 0 | J84: 0 | K84: 0 | L84: 0 | M84: 0 | N84: 0 | O84: 0 | P84: 0 | S84: 0.79 | T84: 0.00 | U84: 0 | V84: 0 | W84: 0 | X84: 0 | Y84: 0 | Z84: 0 | AA84: 0 | AB84: 0 | AC84: 0 | AD84: 0 | AE84: 0 | AK84: 0
A85: 2068 | B85: 55 | C85: 52% | D85: 0.77 | E85: 0.00 | F85: 0 | G85: 0 | H85: 0 | I85: 0 | J85: 0 | K85: 0 | L85: 0 | M85: 0 | N85: 0 | O85: 0 | P85: 0 | S85: 0.77 | T85: 0.00 | U85: 0 | V85: 0 | W85: 0 | X85: 0 | Y85: 0 | Z85: 0 | AA85: 0 | AB85: 0 | AC85: 0 | AD85: 0 | AE85: 0 | AK85: 0
A86: 2069 | B86: 56 | C86: 52% | D86: 0.76 | E86: 0.00 | F86: 0 | G86: 0 | H86: 0 | I86: 0 | J86: 0 | K86: 0 | L86: 0 | M86: 0 | N86: 0 | O86: 0 | P86: 0 | S86: 0.76 | T86: 0.00 | U86: 0 | V86: 0 | W86: 0 | X86: 0 | Y86: 0 | Z86: 0 | AA86: 0 | AB86: 0 | AC86: 0 | AD86: 0 | AE86: 0 | AK86: 0
A87: 2070 | B87: 57 | C87: 51% | D87: 0.74 | E87: 0.00 | F87: 0 | G87: 0 | H87: 0 | I87: 0 | J87: 0 | K87: 0 | L87: 0 | M87: 0 | N87: 0 | O87: 0 | P87: 0 | S87: 0.74 | T87: 0.00 | U87: 0 | V87: 0 | W87: 0 | X87: 0 | Y87: 0 | Z87: 0 | AA87: 0 | AB87: 0 | AC87: 0 | AD87: 0 | AE87: 0 | AK87: 0
A88: 2071 | B88: 58 | C88: 50% | D88: 0.72 | E88: 0.00 | F88: 0 | G88: 0 | H88: 0 | I88: 0 | J88: 0 | K88: 0 | L88: 0 | M88: 0 | N88: 0 | O88: 0 | P88: 0 | S88: 0.72 | T88: 0.00 | U88: 0 | V88: 0 | W88: 0 | X88: 0 | Y88: 0 | Z88: 0 | AA88: 0 | AB88: 0 | AC88: 0 | AD88: 0 | AE88: 0 | AK88: 0
A89: 2072 | B89: 59 | C89: 50% | D89: 0.70 | E89: 0.00 | F89: 0 | G89: 0 | H89: 0 | I89: 0 | J89: 0 | K89: 0 | L89: 0 | M89: 0 | N89: 0 | O89: 0 | P89: 0 | S89: 0.70 | T89: 0.00 | U89: 0 | V89: 0 | W89: 0 | X89: 0 | Y89: 0 | Z89: 0 | AA89: 0 | AB89: 0 | AC89: 0 | AD89: 0 | AE89: 0 | AK89: 0
A90: 2073 | B90: 60 | C90: 49% | D90: 0.68 | E90: 0.00 | F90: 0 | G90: 0 | H90: 0 | I90: 0 | J90: 0 | K90: 0 | L90: 0 | M90: 0 | N90: 0 | O90: 0 | P90: 0 | S90: 0.68 | T90: 0.00 | U90: 0 | V90: 0 | W90: 0 | X90: 0 | Y90: 0 | Z90: 0 | AA90: 0 | AB90: 0 | AC90: 0 | AD90: 0 | AE90: 0 | AK90: 0
A91: 2074 | B91: 61 | C91: 49% | D91: 0.66 | E91: 0.00 | F91: 0 | G91: 0 | H91: 0 | I91: 0 | J91: 0 | K91: 0 | L91: 0 | M91: 0 | N91: 0 | O91: 0 | P91: 0 | S91: 0.66 | T91: 0.00 | U91: 0 | V91: 0 | W91: 0 | X91: 0 | Y91: 0 | Z91: 0 | AA91: 0 | AB91: 0 | AC91: 0 | AD91: 0 | AE91: 0 | AK91: 0
A92: 2075 | B92: 62 | C92: 48% | D92: 0.64 | E92: 0.00 | F92: 0 | G92: 0 | H92: 0 | I92: 0 | J92: 0 | K92: 0 | L92: 0 | M92: 0 | N92: 0 | O92: 0 | P92: 0 | S92: 0.64 | T92: 0.00 | U92: 0 | V92: 0 | W92: 0 | X92: 0 | Y92: 0 | Z92: 0 | AA92: 0 | AB92: 0 | AC92: 0 | AD92: 0 | AE92: 0 | AK92: 0
A93: 2076 | B93: 63 | C93: 48% | D93: 0.62 | E93: 0.00 | F93: 0 | G93: 0 | H93: 0 | I93: 0 | J93: 0 | K93: 0 | L93: 0 | M93: 0 | N93: 0 | O93: 0 | P93: 0 | S93: 0.62 | T93: 0.00 | U93: 0 | V93: 0 | W93: 0 | X93: 0 | Y93: 0 | Z93: 0 | AA93: 0 | AB93: 0 | AC93: 0 | AD93: 0 | AE93: 0 | AK93: 0
A94: 2077 | B94: 64 | C94: 47% | D94: =IF(OR(age+B94>190,IF(ISERROR(VLOOKUP(age+duree_effectuee,table_nonRev,2,0)),0,VLOOKUP(age+duree_effectuee,table_nonRev,2,0)=0)), 0, VLOOKUP(age+$B94,table_nonRev,2,0)/VLOOKUP(age+duree_effectuee,table_nonRev,2,0)) -> 0.60 | E94: =IF(age+B94<190,INDEX(P€R_nonRev,$A$23+B94,0),0) -> 0.00 | F94: 0 | G94: =F94*taux_frais -> 0 | H94: 0 | I94: 0 | J94: 0 | K94: 0 | L94: 0 | M94: =K94*Taux_PF -> 0 | N94: 0 | O94: 0 | P94: =J94*Taux_SCR -> 0 | S94: =IF(OR(age+$B94>190,IF(ISERROR(VLOOKUP(age+duree_effectuee,table_revalo,2,0)),0,VLOOKUP(age+duree_effectuee,table_revalo,2,0)=0)), 0, VLOOKUP(age+$B94,table_revalo,2,0)/VLOOKUP(age+duree_effectuee,table_revalo,2,0)) -> 0.60 | T94: =IF(age+B94<190,INDEX(P€R_rev,$A$23+B94,0),0) -> 0.00 | U94: 0 | V94: =U94*taux_frais -> 0 | W94: 0 | X94: 0 | Y94: 0 | Z94: 0 | AA94: 0 | AB94: =Z94*Taux_PF -> 0 | AC94: 0 | AD94: 0 | AE94: =Y94*Taux_SCR -> 0 | AK94: 0
A95: 2078 | B95: 65 | C95: 46% | D95: 0.57 | E95: 0.00 | F95: =IF(AND(Type_rente="Temporaire",$B95> duree_effectuee+duree_restante),0,IF($B95<duree_effectuee+1,Arrerage_cal,D95*Arrerage_cal)) -> 0 | G95: 0 | H95: =F95+G95 -> 0 | I95: =H95*$C95 -> 0 | J95: =F95*(1+taux_frais)*E95 -> 0 | K95: 0 | L95: =J95+K95 -> 0 | M95: 0 | N95: =F95+G95+L95+M95 -> 0 | O95: =$C95*N95 -> 0 | P95: 0 | S95: 0.57 | T95: 0.00 | U95: =IF(AND(Type_rente="TEMPORAIRE",$B95> duree_effectuee+duree_restante),0,IF($B95<duree_effectuee+1,Arrerage_cal*(1+reval_reel)^$B95,S95*Arrerage_cal*(1+reval_reel)^$B95)) -> 0 | V95: 0 | W95: =U95+V95 -> 0 | X95: =W95*$C95 -> 0 | Y95: =U95*(1+taux_frais)*T95 -> 0 | Z95: 0 | AA95: =Y95+Z95 -> 0 | AB95: 0 | AC95: =U95+V95+AA95+AB95 -> 0 | AD95: =$C95*AC95 -> 0 | AE95: 0 | AK95: 0
A96: =A95+1 -> 2079 | B96: 66 | C96: 46% | D96: 0.54 | E96: 0.00 | F96: 0 | G96: 0 | H96: 0 | I96: 0 | J96: 0 | K96: =-J95 -> 0 | L96: 0 | M96: 0 | N96: 0 | O96: 0 | P96: 0 | S96: 0.54 | T96: 0.00 | U96: 0 | V96: 0 | W96: 0 | X96: 0 | Y96: 0 | Z96: =-Y95 -> 0 | AA96: 0 | AB96: 0 | AC96: 0 | AD96: 0 | AE96: 0 | AK96: 0
A97: 2080 | B97: 67 | C97: 45% | D97: 0.52 | E97: 0.00 | F97: 0 | G97: 0 | H97: 0 | I97: 0 | J97: 0 | K97: 0 | L97: 0 | M97: 0 | N97: 0 | O97: 0 | P97: 0 | S97: 0.52 | T97: 0.00 | U97: 0 | V97: 0 | W97: 0 | X97: 0 | Y97: 0 | Z97: 0 | AA97: 0 | AB97: 0 | AC97: 0 | AD97: 0 | AE97: 0 | AK97: 0
A98: 2081 | B98: 68 | C98: 45% | D98: 0.49 | E98: 0.00 | F98: 0 | G98: 0 | H98: 0 | I98: 0 | J98: 0 | K98: 0 | L98: 0 | M98: 0 | N98: 0 | O98: 0 | P98: 0 | S98: 0.49 | T98: 0.00 | U98: 0 | V98: 0 | W98: 0 | X98: 0 | Y98: 0 | Z98: 0 | AA98: 0 | AB98: 0 | AC98: 0 | AD98: 0 | AE98: 0 | AK98: 0
A99: 2082 | B99: 69 | C99: 44% | D99: 0.46 | E99: 0.00 | F99: 0 | G99: 0 | H99: 0 | I99: 0 | J99: 0 | K99: 0 | L99: 0 | M99: 0 | N99: 0 | O99: 0 | P99: 0 | S99: 0.46 | T99: 0.00 | U99: 0 | V99: 0 | W99: 0 | X99: 0 | Y99: 0 | Z99: 0 | AA99: 0 | AB99: 0 | AC99: 0 | AD99: 0 | AE99: 0 | AK99: 0
A100: 2083 | B100: 70 | C100: 44% | D100: 0.43 | E100: 0.00 | F100: 0 | G100: 0 | H100: 0 | I100: 0 | J100: 0 | K100: 0 | L100: 0 | M100: 0 | N100: 0 | O100: 0 | P100: 0 | S100: 0.43 | T100: 0.00 | U100: 0 | V100: 0 | W100: 0 | X100: 0 | Y100: 0 | Z100: 0 | AA100: 0 | AB100: 0 | AC100: 0 | AD100: 0 | AE100: 0 | AK100: =AG101*AI100 -> 0
A101: 2084 | B101: 71 | C101: 43% | D101: 0.40 | E101: 0.00 | F101: 0 | G101: 0 | H101: 0 | I101: 0 | J101: 0 | K101: 0 | L101: 0 | M101: 0 | N101: 0 | O101: 0 | P101: 0 | S101: 0.40 | T101: 0.00 | U101: 0 | V101: 0 | W101: 0 | X101: 0 | Y101: 0 | Z101: 0 | AA101: 0 | AB101: 0 | AC101: 0 | AD101: 0 | AE101: 0 | AK101: 0
A102: 2085 | B102: 72 | C102: 43% | D102: 0.36 | E102: 0.00 | F102: 0 | G102: 0 | H102: 0 | I102: 0 | J102: 0 | K102: 0 | L102: 0 | M102: 0 | N102: 0 | O102: 0 | P102: 0 | S102: 0.36 | T102: 0.00 | U102: 0 | V102: 0 | W102: 0 | X102: 0 | Y102: 0 | Z102: 0 | AA102: 0 | AB102: 0 | AC102: 0 | AD102: 0 | AE102: 0 | AK102: 0
A103: 2086 | B103: 73 | C103: 42% | D103: 0.33 | E103: 0.00 | F103: 0 | G103: 0 | H103: 0 | I103: 0 | J103: 0 | K103: 0 | L103: 0 | M103: 0 | N103: 0 | O103: 0 | P103: 0 | S103: 0.33 | T103: 0.00 | U103: 0 | V103: 0 | W103: 0 | X103: 0 | Y103: 0 | Z103: 0 | AA103: 0 | AB103: 0 | AC103: 0 | AD103: 0 | AE103: 0 | AK103: 0
A104: 2087 | B104: 74 | C104: 42% | D104: 0.30 | E104: 0.00 | F104: 0 | G104: 0 | H104: 0 | I104: 0 | J104: 0 | K104: 0 | L104: 0 | M104: 0 | N104: 0 | O104: 0 | P104: 0 | S104: 0.30 | T104: 0.00 | U104: 0 | V104: 0 | W104: 0 | X104: 0 | Y104: 0 | Z104: 0 | AA104: 0 | AB104: 0 | AC104: 0 | AD104: 0 | AE104: 0 | AK104: 0
A105: 2088 | B105: 75 | C105: 41% | D105: 0.26 | E105: 0.00 | F105: 0 | G105: 0 | H105: 0 | I105: 0 | J105: 0 | K105: 0 | L105: 0 | M105: 0 | N105: 0 | O105: 0 | P105: 0 | S105: 0.26 | T105: 0.00 | U105: 0 | V105: 0 | W105: 0 | X105: 0 | Y105: 0 | Z105: 0 | AA105: 0 | AB105: 0 | AC105: 0 | AD105: 0 | AE105: 0 | AK105: 0
A106: 2089 | B106: 76 | C106: 41% | D106: 0.23 | E106: 0.00 | F106: 0 | G106: 0 | H106: 0 | I106: 0 | J106: 0 | K106: 0 | L106: 0 | M106: 0 | N106: 0 | O106: 0 | P106: 0 | S106: 0.23 | T106: 0.00 | U106: 0 | V106: 0 | W106: 0 | X106: 0 | Y106: 0 | Z106: 0 | AA106: 0 | AB106: 0 | AC106: 0 | AD106: 0 | AE106: 0 | AK106: 0
A107: 2090 | B107: 77 | C107: 40% | D107: 0.20 | E107: 0.00 | F107: 0 | G107: 0 | H107: 0 | I107: 0 | J107: 0 | K107: 0 | L107: 0 | M107: 0 | N107: 0 | O107: 0 | P107: 0 | S107: 0.20 | T107: 0.00 | U107: 0 | V107: 0 | W107: 0 | X107: 0 | Y107: 0 | Z107: 0 | AA107: 0 | AB107: 0 | AC107: 0 | AD107: 0 | AE107: 0 | AK107: 0
A108: 2091 | B108: 78 | C108: 40% | D108: 0.17 | E108: 0.00 | F108: 0 | G108: 0 | H108: 0 | I108: 0 | J108: 0 | K108: 0 | L108: 0 | M108: 0 | N108: 0 | O108: 0 | P108: 0 | S108: 0.17 | T108: 0.00 | U108: 0 | V108: 0 | W108: 0 | X108: 0 | Y108: 0 | Z108: 0 | AA108: 0 | AB108: 0 | AC108: 0 | AD108: 0 | AE108: 0 | AK108: 0
A109: 2092 | B109: 79 | C109: 39% | D109: 0.14 | E109: 0.00 | F109: 0 | G109: 0 | H109: 0 | I109: 0 | J109: 0 | K109: 0 | L109: 0 | M109: 0 | N109: 0 | O109: 0 | P109: 0 | S109: 0.14 | T109: 0.00 | U109: 0 | V109: 0 | W109: 0 | X109: 0 | Y109: 0 | Z109: 0 | AA109: 0 | AB109: 0 | AC109: 0 | AD109: 0 | AE109: 0 | AK109: 0
A110: 2093 | B110: 80 | C110: 39% | D110: 0.12 | E110: 0.00 | F110: 0 | G110: 0 | H110: 0 | I110: 0 | J110: 0 | K110: 0 | L110: 0 | M110: 0 | N110: 0 | O110: 0 | P110: 0 | S110: 0.12 | T110: 0.00 | U110: 0 | V110: 0 | W110: 0 | X110: 0 | Y110: 0 | Z110: 0 | AA110: 0 | AB110: 0 | AC110: 0 | AD110: 0 | AE110: 0 | AK110: 0
A111: 2094 | B111: 81 | C111: 38% | D111: 0.10 | E111: 0.00 | F111: 0 | G111: 0 | H111: 0 | I111: 0 | J111: 0 | K111: 0 | L111: 0 | M111: 0 | N111: 0 | O111: 0 | P111: 0 | S111: 0.10 | T111: 0.00 | U111: 0 | V111: 0 | W111: 0 | X111: 0 | Y111: 0 | Z111: 0 | AA111: 0 | AB111: 0 | AC111: 0 | AD111: 0 | AE111: 0 | AK111: 0
A112: =A111+1 -> 2095 | B112: 82 | C112: 38% | D112: 0.08 | E112: 0.00 | F112: 0 | G112: 0 | H112: 0 | I112: 0 | J112: 0 | K112: 0 | L112: 0 | M112: 0 | N112: 0 | O112: 0 | P112: 0 | S112: 0.08 | T112: 0.00 | U112: 0 | V112: 0 | W112: 0 | X112: 0 | Y112: 0 | Z112: 0 | AA112: 0 | AB112: 0 | AC112: 0 | AD112: 0 | AE112: 0 | AK112: 0
A113: 2096 | B113: 83 | C113: 38% | D113: 0.06 | E113: 0.00 | F113: 0 | G113: 0 | H113: 0 | I113: 0 | J113: 0 | K113: 0 | L113: 0 | M113: 0 | N113: 0 | O113: 0 | P113: 0 | S113: 0.06 | T113: 0.00 | U113: 0 | V113: 0 | W113: 0 | X113: 0 | Y113: 0 | Z113: 0 | AA113: 0 | AB113: 0 | AC113: 0 | AD113: 0 | AE113: 0 | AK113: 0
A114: 2097 | B114: 84 | C114: 37% | D114: 0.04 | E114: 0.00 | F114: 0 | G114: 0 | H114: 0 | I114: 0 | J114: 0 | K114: 0 | L114: 0 | M114: 0 | N114: 0 | O114: 0 | P114: 0 | S114: 0.04 | T114: 0.00 | U114: 0 | V114: 0 | W114: 0 | X114: 0 | Y114: 0 | Z114: 0 | AA114: 0 | AB114: 0 | AC114: 0 | AD114: 0 | AE114: 0 | AK114: 0
A115: 2098 | B115: 85 | C115: 37% | D115: 0.03 | E115: 0.00 | F115: 0 | G115: 0 | H115: 0 | I115: 0 | J115: 0 | K115: 0 | L115: 0 | M115: 0 | N115: 0 | O115: 0 | P115: 0 | S115: 0.03 | T115: 0.00 | U115: 0 | V115: 0 | W115: 0 | X115: 0 | Y115: 0 | Z115: 0 | AA115: 0 | AB115: 0 | AC115: 0 | AD115: 0 | AE115: 0 | AK115: 0
A116: 2099 | B116: 86 | C116: 36% | D116: 0.02 | E116: 0.00 | F116: 0 | G116: 0 | H116: 0 | I116: 0 | J116: 0 | K116: 0 | L116: 0 | M116: 0 | N116: 0 | O116: 0 | P116: 0 | S116: 0.02 | T116: 0.00 | U116: 0 | V116: 0 | W116: 0 | X116: 0 | Y116: 0 | Z116: 0 | AA116: 0 | AB116: 0 | AC116: 0 | AD116: 0 | AE116: 0 | AK116: 0
A117: 2100 | B117: 87 | C117: 36% | D117: 0.02 | E117: 0.00 | F117: 0 | G117: 0 | H117: 0 | I117: 0 | J117: 0 | K117: 0 | L117: 0 | M117: 0 | N117: 0 | O117: 0 | P117: 0 | S117: 0.02 | T117: 0.00 | U117: 0 | V117: 0 | W117: 0 | X117: 0 | Y117: 0 | Z117: 0 | AA117: 0 | AB117: 0 | AC117: 0 | AD117: 0 | AE117: 0 | AK117: 0
A118: 2101 | B118: 88 | C118: 35% | D118: 0.01 | E118: 0.00 | F118: 0 | G118: 0 | H118: 0 | I118: 0 | J118: 0 | K118: 0 | L118: 0 | M118: 0 | N118: 0 | O118: 0 | P118: 0 | S118: 0.01 | T118: 0.00 | U118: 0 | V118: 0 | W118: 0 | X118: 0 | Y118: 0 | Z118: 0 | AA118: 0 | AB118: 0 | AC118: 0 | AD118: 0 | AE118: 0 | AK118: 0
A119: 2102 | B119: 89 | C119: 35% | D119: 0.01 | E119: 0.00 | F119: 0 | G119: 0 | H119: 0 | I119: 0 | J119: 0 | K119: 0 | L119: 0 | M119: 0 | N119: 0 | O119: 0 | P119: 0 | S119: 0.01 | T119: 0.00 | U119: 0 | V119: 0 | W119: 0 | X119: 0 | Y119: 0 | Z119: 0 | AA119: 0 | AB119: 0 | AC119: 0 | AD119: 0 | AE119: 0 | AK119: 0
A120: 2103 | B120: 90 | C120: 35% | D120: 0.00 | E120: 0.00 | F120: 0 | G120: 0 | H120: 0 | I120: 0 | J120: 0 | K120: 0 | L120: 0 | M120: 0 | N120: 0 | O120: 0 | P120: 0 | S120: 0.00 | T120: 0.00 | U120: 0 | V120: 0 | W120: 0 | X120: 0 | Y120: 0 | Z120: 0 | AA120: 0 | AB120: 0 | AC120: 0 | AD120: 0 | AE120: 0 | AK120: 0
A121: 2104 | B121: 91 | C121: 34% | D121: 0.00 | E121: 0.00 | F121: 0 | G121: 0 | H121: 0 | I121: 0 | J121: 0 | K121: 0 | L121: 0 | M121: 0 | N121: 0 | O121: 0 | P121: 0 | S121: 0.00 | T121: 0.00 | U121: 0 | V121: 0 | W121: 0 | X121: 0 | Y121: 0 | Z121: 0 | AA121: 0 | AB121: 0 | AC121: 0 | AD121: 0 | AE121: 0 | AK121: 0
A122: 2105 | B122: 92 | C122: 34% | D122: 0.00 | E122: 0.00 | F122: 0 | G122: 0 | H122: 0 | I122: 0 | J122: 0 | K122: 0 | L122: 0 | M122: 0 | N122: 0 | O122: 0 | P122: 0 | S122: 0.00 | T122: 0.00 | U122: 0 | V122: 0 | W122: 0 | X122: 0 | Y122: 0 | Z122: 0 | AA122: 0 | AB122: 0 | AC122: 0 | AD122: 0 | AE122: 0 | AK122: 0
A123: 2106 | B123: 93 | C123: 33% | D123: 0.00 | E123: 0.00 | F123: 0 | G123: 0 | H123: 0 | I123: 0 | J123: 0 | K123: 0 | L123: 0 | M123: 0 | N123: 0 | O123: 0 | P123: 0 | S123: 0.00 | T123: 0.00 | U123: 0 | V123: 0 | W123: 0 | X123: 0 | Y123: 0 | Z123: 0 | AA123: 0 | AB123: 0 | AC123: 0 | AD123: 0 | AE123: 0 | AK123: 0
A124: 2107 | B124: 94 | C124: 33% | D124: 0.00 | E124: 0.00 | F124: 0 | G124: 0 | H124: 0 | I124: 0 | J124: 0 | K124: 0 | L124: 0 | M124: 0 | N124: 0 | O124: 0 | P124: 0 | S124: 0.00 | T124: 0.00 | U124: 0 | V124: 0 | W124: 0 | X124: 0 | Y124: 0 | Z124: 0 | AA124: 0 | AB124: 0 | AC124: 0 | AD124: 0 | AE124: 0.00 | AK124: 0
A125: 2108 | B125: 95 | C125: 33% | D125: 0.00 | E125: 0.00 | F125: 0 | G125: 0 | H125: 0 | I125: 0 | J125: 0 | K125: 0 | L125: 0 | M125: 0 | N125: 0 | O125: 0 | P125: 0 | S125: 0.00 | T125: 0.00 | U125: 0 | V125: 0 | W125: 0 | X125: 0 | Y125: 0 | Z125: 0 | AA125: 0 | AB125: 0 | AC125: 0 | AD125: 0 | AE125: 0.00 | AK125: 0
A126: 2109 | B126: 96 | C126: 32% | D126: =IF(OR(age+B126>190,IF(ISERROR(VLOOKUP(age+duree_effectuee,table_nonRev,2,0)),0,VLOOKUP(age+duree_effectuee,table_nonRev,2,0)=0)), 0, VLOOKUP(age+$B126,table_nonRev,2,0)/VLOOKUP(age+duree_effectuee,table_nonRev,2,0)) -> 0.00 | E126: =IF(age+B126<190,INDEX(P€R_nonRev,$A$23+B126,0),0) -> 0.00 | F126: 0 | G126: =F126*taux_frais -> 0 | H126: 0 | I126: 0 | J126: 0 | K126: 0 | L126: 0 | M126: =K126*Taux_PF -> 0 | N126: 0 | O126: 0 | P126: 0 | S126: =IF(OR(age+$B126>190,IF(ISERROR(VLOOKUP(age+duree_effectuee,table_revalo,2,0)),0,VLOOKUP(age+duree_effectuee,table_revalo,2,0)=0)), 0, VLOOKUP(age+$B126,table_revalo,2,0)/VLOOKUP(age+duree_effectuee,table_revalo,2,0)) -> 0.00 | T126: =IF(age+B126<190,INDEX(P€R_rev,$A$23+B126,0),0) -> 0.00 | U126: 0 | V126: 0 | W126: 0 | X126: 0 | Y126: 0 | Z126: 0 | AA126: 0 | AB126: =Z126*Taux_PF -> 0 | AC126: 0 | AD126: 0 | AE126: 0 | AK126: 0
A127: 2110 | B127: 97 | C127: 32% | D127: 0.00 | E127: 1.00 | F127: =IF(AND(Type_rente="Temporaire",$B127> duree_effectuee+duree_restante),0,IF($B127<duree_effectuee+1,Arrerage_cal,D127*Arrerage_cal)) -> 0 | G127: 0 | H127: 0 | I127: 0 | J127: =F127*(1+taux_frais)*E127 -> 0 | K127: 0 | L127: 0 | M127: 0 | N127: 0 | O127: 0 | P127: 0 | S127: 0.00 | T127: 1.00 | U127: =IF(AND(Type_rente="TEMPORAIRE",$B127> duree_effectuee+duree_restante),0,IF($B127<duree_effectuee+1,Arrerage_cal*(1+reval_reel)^$B127,S127*Arrerage_cal*(1+reval_reel)^$B127)) -> 0 | V127: 0 | W127: 0 | X127: 0 | Y127: =U127*(1+taux_frais)*T127 -> 0 | Z127: 0 | AA127: 0 | AB127: 0 | AC127: 0 | AD127: 0 | AE127: 0 | AK127: 0
A128: =A127+1 -> 2111 | B128: 98 | C128: 31% | D128: 0.00 | E128: 1.00 | F128: 0 | G128: 0 | H128: 0 | I128: 0 | J128: 0 | K128: 0 | L128: 0 | M128: 0 | N128: 0 | O128: 0 | P128: 0 | S128: 0.00 | T128: 1.00 | U128: 0 | V128: 0 | W128: 0 | X128: 0 | Y128: 0 | Z128: 0 | AA128: 0 | AB128: 0 | AC128: 0 | AD128: 0 | AE128: 0 | AK128: 0
A129: 2112 | B129: 99 | C129: 31% | D129: 0.00 | E129: 1.00 | F129: 0 | G129: 0 | H129: 0 | I129: 0 | J129: 0 | K129: 0 | L129: 0 | M129: 0 | N129: 0 | O129: 0 | P129: 0 | S129: 0.00 | T129: 1.00 | U129: 0 | V129: 0 | W129: 0 | X129: 0 | Y129: 0 | Z129: 0 | AA129: 0 | AB129: 0 | AC129: 0 | AD129: 0 | AE129: 0 | AK129: 0
A130: 2113 | B130: 100 | C130: 31% | D130: 0.00 | E130: 1.00 | F130: 0 | G130: 0 | H130: 0 | I130: 0 | J130: 0 | K130: 0 | L130: 0 | M130: 0 | N130: 0 | O130: 0 | P130: 0 | S130: 0.00 | T130: 1.00 | U130: 0 | V130: 0 | W130: 0 | X130: 0 | Y130: 0 | Z130: 0 | AA130: 0 | AB130: 0 | AC130: 0 | AD130: 0 | AE130: 0 | AK130: 0
A131: 2114 | B131: 101 | C131: 30% | D131: 0.00 | E131: 1.00 | F131: 0 | G131: 0 | H131: 0 | I131: 0 | J131: 0 | K131: 0 | L131: 0 | M131: 0 | N131: 0 | O131: 0 | P131: 0 | S131: 0.00 | T131: 1.00 | U131: 0 | V131: 0 | W131: 0 | X131: 0 | Y131: 0 | Z131: 0 | AA131: 0 | AB131: 0 | AC131: 0 | AD131: 0 | AE131: 0 | AK131: 0
A132: 2115 | B132: 102 | C132: 30% | D132: 0.00 | E132: 1.00 | F132: 0 | G132: 0 | H132: 0 | I132: 0 | J132: 0 | K132: 0 | L132: 0 | M132: 0 | N132: 0 | O132: 0 | P132: 0 | S132: 0.00 | T132: 1.00 | U132: 0 | V132: 0 | W132: 0 | X132: 0 | Y132: 0 | Z132: 0 | AA132: 0 | AB132: 0 | AC132: 0 | AD132: 0 | AE132: 0 | AK132: 0
A133: 2116 | B133: 103 | C133: 30% | D133: 0.00 | E133: 1.00 | F133: 0 | G133: 0 | H133: 0 | I133: 0 | J133: 0 | K133: 0 | L133: 0 | M133: 0 | N133: 0 | O133: 0 | P133: 0 | S133: 0.00 | T133: 1.00 | U133: 0 | V133: 0 | W133: 0 | X133: 0 | Y133: 0 | Z133: 0 | AA133: 0 | AB133: 0 | AC133: 0 | AD133: 0 | AE133: 0 | AK133: 0
A134: 2117 | B134: 104 | C134: 29% | D134: 0.00 | E134: 1.00 | F134: 0 | G134: 0 | H134: 0 | I134: 0 | J134: 0 | K134: 0 | L134: 0 | M134: 0 | N134: 0 | O134: 0 | P134: 0 | S134: 0.00 | T134: 1.00 | U134: 0 | V134: 0 | W134: 0 | X134: 0 | Y134: 0 | Z134: 0 | AA134: 0 | AB134: 0 | AC134: 0 | AD134: 0 | AE134: 0 | AK134: 0
A135: 2118 | B135: 105 | C135: 29% | D135: 0.00 | E135: 1.00 | F135: 0 | G135: 0 | H135: 0 | I135: 0 | J135: 0 | K135: 0 | L135: 0 | M135: 0 | N135: 0 | O135: 0 | P135: 0 | S135: 0.00 | T135: 1.00 | U135: 0 | V135: 0 | W135: 0 | X135: 0 | Y135: 0 | Z135: 0 | AA135: 0 | AB135: 0 | AC135: 0 | AD135: 0 | AE135: 0 | AK135: 0
A136: 2119 | B136: 106 | C136: 29% | D136: 0.00 | E136: 1.00 | F136: 0 | G136: 0 | H136: 0 | I136: 0 | J136: 0 | K136: 0 | L136: 0 | M136: 0 | N136: 0 | O136: 0 | P136: 0 | S136: 0.00 | T136: 1.00 | U136: 0 | V136: 0 | W136: 0 | X136: 0 | Y136: 0 | Z136: 0 | AA136: 0 | AB136: 0 | AC136: 0 | AD136: 0 | AE136: 0 | AK136: 0
A137: =A136+1 -> 2120 | B137: =B136+1 -> 107 | C137: 28% | D137: 0.00 | E137: 1.00 | F137: 0 | G137: 0 | H137: 0 | I137: 0 | J137: 0 | K137: 0 | L137: 0 | M137: 0 | N137: 0 | O137: 0 | P137: 0 | S137: 0.00 | T137: 1.00 | U137: 0 | V137: 0 | W137: 0 | X137: 0 | Y137: 0 | Z137: 0 | AA137: 0 | AB137: 0 | AC137: 0 | AD137: 0 | AE137: 0

Sheet hypothèses
B2: Date de calcul : | C2: 2013-12-31
B4: Table de mortalité : | C4: TD 88-90
B6: TME : | C6: 1.98%
B8: Taux de revalorisation réel : | C8: 2.25%
B10: Taux de revalorisation corp : | C10: 3.00%
B12: Taux de frais : | C12: 1.50%
B14: Taux de produit financier : | C14: =table!B1 -> 1.19%
B16: Taux de SCR / PM NF : | C16: 5%
B18: Marge de risque : | C18: 6%

Sheet table
A1: Taux technique | B1: =60%*hypothèses!C6 -> 1.19% | E1: Limite | G1: Taux technique | H1: =(1+B1)/(1+hypothèses!C8)-1 -> -1.04% | K1: =E1 -> Limite | L1: Viagere
A2: Table | B2: TD 88/90 | D2: =IF(Type_rente="VIAGERE",117,'cas par cas'!$D$4-'cas par cas'!$D$2) -> 12 | E2: 10 | G2: Table | H2: TD 88/90 | K2: =E2 -> 10
A3: RENTES VIAGERES NON REVALORISABLES | G3: RENTES VIAGERES REVALORISABLES
A4: Age | B4: Lx | C4: Dx | D4: NX | E4: P€R | G4: Age | H4: Lx | I4: Dx | J4: NX | K4: P€R
A5: 0 | B5: 100,000 | C5: =B5/(1+$B$1)^A5 -> 100,000 | D5: =SUM(C5:$C$125) -> 4,838,152 | E5: =MAX(0,IF(OR(C5=0,D6=0),1,(D6-VLOOKUP($E$2+1,$A$6:$D$124,4,0))/C5)) -> 9.279 | G5: 0 | H5: 100,000 | I5: =H5/(1+$H$1)^G5 -> 100,000 | J5: =SUM($I5:I$125) -> 11,196,950 | K5: =MAX(0,IF(OR(I5=0,J6=0),1,(J6-VLOOKUP($K$2+1,$G$6:$J$124,4,0))/I5)) -> 10.485
A6: 1 | B6: 99,129 | C6: =B6/(1+$B$1)^A6 -> 97,965 | D6: =SUM(C6:$C$125) -> 4,738,152 | E6: =MAX(0,IF(OR(C6=0,D7=0),1,(D7-VLOOKUP($E$2+1,$A$6:$D$124,4,0))/C6)) -> 8.471 | G6: 1 | H6: 99,129 | I6: 100,169 | J6: =SUM($I6:I$125) -> 11,096,950 | K6: =MAX(0,IF(OR(I6=0,J7=0),1,(J7-VLOOKUP($K$2+1,$G$6:$J$124,4,0))/I6)) -> 9.467
A7: 2 | B7: 99,057 | C7: 96,745 | D7: =SUM(C7:$C$125) -> 4,640,187 | E7: 7.578 | G7: 2 | H7: 99,057 | I7: 101,147 | J7: =SUM($I7:I$125) -> 10,996,781 | K7: 8.375
A8: 3 | B8: 99,010 | C8: 95,563 | D8: =SUM(C8:$C$125) -> 4,543,442 | E8: 6.672 | G8: 3 | H8: 99,010 | I8: 102,160 | J8: =SUM($I8:I$125) -> 10,895,633 | K8: 7.292
A9: 4 | B9: 98,997 | C9: 94,429 | D9: =SUM(C9:$C$125) -> 4,447,879 | E9: 5.752 | G9: 4 | H9: 98,997 | I9: 103,219 | J9: =SUM($I9:I$125) -> 10,793,473 | K9: 6.217
A10: 5 | B10: 98,948 | C10: 93,274 | D10: =SUM(C10:$C$125) -> 4,353,450 | E10: 4.823 | G10: 5 | H10: 98,948 | I10: 104,251 | J10: =SUM($I10:I$125) -> 10,690,254 | K10: 5.156
A11: 6 | B11: 98,921 | C11: 92,154 | D11: =SUM(C11:$C$125) -> 4,260,175 | E11: 3.882 | G11: 6 | H11: 98,921 | I11: 105,316 | J11: =SUM($I11:I$125) -> 10,586,004 | K11: 4.104
A12: 7 | B12: 98,897 | C12: 91,050 | D12: =SUM(C12:$C$125) -> 4,168,021 | E12: 2.929 | G12: 7 | H12: 98,897 | I12: 106,395 | J12: =SUM($I12:I$125) -> 10,480,688 | K12: 3.062
A13: 8 | B13: 98,876 | C13: 89,962 | D13: =SUM(C13:$C$125) -> 4,076,971 | E13: 1.964 | G13: 8 | H13: 98,876 | I13: 107,489 | J13: =SUM($I13:I$125) -> 10,374,292 | K13: 2.031
A14: 9 | B14: 98,855 | C14: 88,887 | D14: =SUM(C14:$C$125) -> 3,987,009 | E14: 0.988 | G14: 9 | H14: 98,855 | I14: 108,594 | J14: =SUM($I14:I$125) -> 10,266,803 | K14: 1.010
A15: 10 | B15: 98,835 | C15: 87,826 | D15: =SUM(C15:$C$125) -> 3,898,122 | E15: 0.000 | G15: 10 | H15: 98,835 | I15: 109,712 | J15: =SUM($I15:I$125) -> 10,158,208 | K15: 0.000
A16: 11 | B16: 98,814 | C16: 86,776 | D16: =SUM(C16:$C$125) -> 3,810,297 | E16: 0.000 | G16: 11 | H16: 98,814 | I16: 110,840 | J16: =SUM($I16:I$125) -> 10,048,497 | K16: 0.000
A17: 12 | B17: 98,793 | C17: 85,739 | D17: =SUM(C17:$C$125) -> 3,723,521 | E17: 0.000 | G17: 12 | H17: 98,793 | I17: 111,979 | J17: =SUM($I17:I$125) -> 9,937,657 | K17: 0.000
A18: 13 | B18: 98,771 | C18: 84,713 | D18: =SUM(C18:$C$125) -> 3,637,782 | E18: 0.000 | G18: 13 | H18: 98,771 | I18: 113,129 | J18: =SUM($I18:I$125) -> 9,825,677 | K18: 0.000
A19: 14 | B19: 98,745 | C19: 83,697 | D19: =SUM(C19:$C$125) -> 3,553,069 | E19: 0.000 | G19: 14 | H19: 98,745 | I19: 114,287 | J19: =SUM($I19:I$125) -> 9,712,548 | K19: 0.000
A20: 15 | B20: 98,712 | C20: 82,687 | D20: =SUM(C20:$C$125) -> 3,469,372 | E20: 0.000 | G20: 15 | H20: 98,712 | I20: 115,447 | J20: =SUM($I20:I$125) -> 9,598,261 | K20: 0.000
A21: 16 | B21: 98,667 | C21: 81,678 | D21: =SUM(C21:$C$125) -> 3,386,685 | E21: 0.000 | G21: 16 | H21: 98,667 | I21: 116,606 | J21: =SUM($I21:I$125) -> 9,482,814 | K21: 0.000
A22: 17 | B22: 98,606 | C22: 80,670 | D22: =SUM(C22:$C$125) -> 3,305,007 | E22: 0.000 | G22: 17 | H22: 98,606 | I22: 117,757 | J22: =SUM($I22:I$125) -> 9,366,208 | K22: 0.000
A23: 18 | B23: 98,520 | C23: 79,653 | D23: =SUM(C23:$C$125) -> 3,224,337 | E23: 0.000 | G23: 18 | H23: 98,520 | I23: 118,889 | J23: =SUM($I23:I$125) -> 9,248,451 | K23: 0.000
A24: 19 | B24: 98,406 | C24: 78,627 | D24: =SUM(C24:$C$125) -> 3,144,684 | E24: 0.000 | G24: 19 | H24: 98,406 | I24: 119,998 | J24: =SUM($I24:I$125) -> 9,129,562 | K24: 0.000
A25: 20 | B25: 98,277 | C25: 77,602 | D25: =SUM(C25:$C$125) -> 3,066,057 | E25: 0.000 | G25: 20 | H25: 98,277 | I25: 121,098 | J25: =SUM($I25:I$125) -> 9,009,564 | K25: 0.000
A26: 21 | B26: 98,137 | C26: 76,581 | D26: =SUM(C26:$C$125) -> 2,988,456 | E26: 0.000 | G26: 21 | H26: 98,137 | I26: 122,195 | J26: =SUM($I26:I$125) -> 8,888,466 | K26: 0.000
A27: 22 | B27: 97,987 | C27: 75,567 | D27: =SUM(C27:$C$125) -> 2,911,874 | E27: 0.000 | G27: 22 | H27: 97,987 | I27: 123,289 | J27: =SUM($I27:I$125) -> 8,766,271 | K27: 0.000
A28: 23 | B28: 97,830 | C28: 74,560 | D28: =SUM(C28:$C$125) -> 2,836,307 | E28: 0.000 | G28: 23 | H28: 97,830 | I28: 124,383 | J28: =SUM($I28:I$125) -> 8,642,982 | K28: 0.000
A29: 24 | B29: 97,677 | C29: 73,569 | D29: =SUM(C29:$C$125) -> 2,761,748 | E29: 0.000 | G29: 24 | H29: 97,677 | I29: 125,492 | J29: =SUM($I29:I$125) -> 8,518,599 | K29: 0.000
A30: 25 | B30: 97,524 | C30: 72,592 | D30: =SUM(C30:$C$125) -> 2,688,178 | E30: 0.000 | G30: 25 | H30: 97,524 | I30: 126,610 | J30: =SUM($I30:I$125) -> 8,393,107 | K30: 0.000
A31: 26 | B31: 97,373 | C31: 71,628 | D31: =SUM(C31:$C$125) -> 2,615,587 | E31: 0.000 | G31: 26 | H31: 97,373 | I31: 127,741 | J31: =SUM($I31:I$125) -> 8,266,497 | K31: 0.000
A32: 27 | B32: 97,222 | C32: 70,678 | D32: =SUM(C32:$C$125) -> 2,543,959 | E32: 0.000 | G32: 27 | H32: 97,222 | I32: 128,882 | J32: =SUM($I32:I$125) -> 8,138,756 | K32: 0.000
A33: 28 | B33: 97,070 | C33: 69,739 | D33: =SUM(C33:$C$125) -> 2,473,281 | E33: 0.000 | G33: 28 | H33: 97,070 | I33: 130,031 | J33: =SUM($I33:I$125) -> 8,009,874 | K33: 0.000
A34: 29 | B34: 96,916 | C34: 68,810 | D34: =SUM(C34:$C$125) -> 2,403,543 | E34: 0.000 | G34: 29 | H34: 96,916 | I34: 131,187 | J34: =SUM($I34:I$125) -> 7,879,844 | K34: 0.000
A35: 30 | B35: 96,759 | C35: 67,892 | D35: =SUM(C35:$C$125) -> 2,334,732 | E35: 0.000 | G35: 30 | H35: 96,759 | I35: 132,349 | J35: =SUM($I35:I$125) -> 7,748,657 | K35: 0.000
A36: 31 | B36: 96,597 | C36: 66,983 | D36: =SUM(C36:$C$125) -> 2,266,840 | E36: 0.000 | G36: 31 | H36: 96,597 | I36: 133,514 | J36: =SUM($I36:I$125) -> 7,616,308 | K36: 0.000
A37: 32 | B37: 96,429 | C37: 66,081 | D37: =SUM(C37:$C$125) -> 2,199,857 | E37: 0.000 | G37: 32 | H37: 96,429 | I37: 134,681 | J37: =SUM($I37:I$125) -> 7,482,794 | K37: 0.000
A38: 33 | B38: 96,255 | C38: 65,188 | D38: =SUM(C38:$C$125) -> 2,133,775 | E38: 0.000 | G38: 33 | H38: 96,255 | I38: 135,849 | J38: =SUM($I38:I$125) -> 7,348,113 | K38: 0.000
A39: 34 | B39: 96,071 | C39: 64,299 | D39: =SUM(C39:$C$125) -> 2,068,588 | E39: 0.000 | G39: 34 | H39: 96,071 | I39: 137,012 | J39: =SUM($I39:I$125) -> 7,212,265 | K39: 0.000
A40: 35 | B40: 95,878 | C40: 63,417 | D40: =SUM(C40:$C$125) -> 2,004,288 | E40: 0.000 | G40: 35 | H40: 95,878 | I40: 138,172 | J40: =SUM($I40:I$125) -> 7,075,252 | K40: 0.000
A41: 36 | B41: 95,676 | C41: 62,540 | D41: =SUM(C41:$C$125) -> 1,940,872 | E41: 0.000 | G41: 36 | H41: 95,676 | I41: 139,328 | J41: =SUM($I41:I$125) -> 6,937,081 | K41: 0.000
A42: 37 | B42: 95,463 | C42: 61,668 | D42: =SUM(C42:$C$125) -> 1,878,332 | E42: 0.000 | G42: 37 | H42: 95,463 | I42: 140,477 | J42: =SUM($I42:I$125) -> 6,797,753 | K42: 0.000
A43: 38 | B43: 95,237 | C43: 60,800 | D43: =SUM(C43:$C$125) -> 1,816,663 | E43: 0.000 | G43: 38 | H43: 95,237 | I43: 141,615 | J43: =SUM($I43:I$125) -> 6,657,276 | K43: 0.000
A44: 39 | B44: 94,997 | C44: 59,935 | D44: =SUM(C44:$C$125) -> 1,755,863 | E44: 0.000 | G44: 39 | H44: 94,997 | I44: 142,741 | J44: =SUM($I44:I$125) -> 6,515,661 | K44: 0.000
A45: 40 | B45: 94,746 | C45: 59,075 | D45: =SUM(C45:$C$125) -> 1,695,929 | E45: 0.000 | G45: 40 | H45: 94,746 | I45: 143,858 | J45: =SUM($I45:I$125) -> 6,372,920 | K45: 0.000
A46: 41 | B46: 94,476 | C46: 58,215 | D46: =SUM(C46:$C$125) -> 1,636,854 | E46: 0.000 | G46: 41 | H46: 94,476 | I46: 144,953 | J46: =SUM($I46:I$125) -> 6,229,063 | K46: 0.000
A47: 42 | B47: 94,182 | C47: 57,352 | D47: =SUM(C47:$C$125) -> 1,578,640 | E47: 0.000 | G47: 42 | H47: 94,182 | I47: 146,019 | J47: =SUM($I47:I$125) -> 6,084,109 | K47: 0.000
A48: 43 | B48: 93,868 | C48: 56,490 | D48: =SUM(C48:$C$125) -> 1,521,288 | E48: 0.000 | G48: 43 | H48: 93,868 | I48: 147,059 | J48: =SUM($I48:I$125) -> 5,938,091 | K48: 0.000
A49: 44 | B49: 93,515 | C49: 55,617 | D49: =SUM(C49:$C$125) -> 1,464,798 | E49: 0.000 | G49: 44 | H49: 93,515 | I49: 148,044 | J49: =SUM($I49:I$125) -> 5,791,031 | K49: 0.000
A50: 45 | B50: 93,133 | C50: 54,739 | D50: =SUM(C50:$C$125) -> 1,409,181 | E50: 0.000 | G50: 45 | H50: 93,133 | I50: 148,987 | J50: =SUM($I50:I$125) -> 5,642,987 | K50: 0.000
A51: 46 | B51: 92,727 | C51: 53,861 | D51: =SUM(C51:$C$125) -> 1,354,442 | E51: 0.000 | G51: 46 | H51: 92,727 | I51: 149,894 | J51: =SUM($I51:I$125) -> 5,494,001 | K51: 0.000
A52: 47 | B52: 92,295 | C52: 52,980 | D52: =SUM(C52:$C$125) -> 1,300,581 | E52: 0.000 | G52: 47 | H52: 92,295 | I52: 150,762 | J52: =SUM($I52:I$125) -> 5,344,107 | K52: 0.000
A53: 48 | B53: 91,833 | C53: 52,096 | D53: =SUM(C53:$C$125) -> 1,247,601 | E53: 0.000 | G53: 48 | H53: 91,833 | I53: 151,581 | J53: =SUM($I53:I$125) -> 5,193,345 | K53: 0.000
A54: 49 | B54: 91,332 | C54: 51,204 | D54: =SUM(C54:$C$125) -> 1,195,505 | E54: 0.000 | G54: 49 | H54: 91,332 | I54: 152,336 | J54: =SUM($I54:I$125) -> 5,041,764 | K54: 0.000
A55: 50 | B55: 90,778 | C55: 50,296 | D55: =SUM(C55:$C$125) -> 1,144,301 | E55: 0.000 | G55: 50 | H55: 90,778 | I55: 153,002 | J55: =SUM($I55:I$125) -> 4,889,427 | K55: 0.000
A56: 51 | B56: 90,171 | C56: 49,373 | D56: =SUM(C56:$C$125) -> 1,094,005 | E56: 0.000 | G56: 51 | H56: 90,171 | I56: 153,574 | J56: =SUM($I56:I$125) -> 4,736,426 | K56: 0.000
A57: 52 | B57: 89,511 | C57: 48,436 | D57: =SUM(C57:$C$125) -> 1,044,633 | E57: 0.000 | G57: 52 | H57: 89,511 | I57: 154,049 | J57: =SUM($I57:I$125) -> 4,582,852 | K57: 0.000
A58: 53 | B58: 88,791 | C58: 47,482 | D58: =SUM(C58:$C$125) -> 996,197 | E58: 0.000 | G58: 53 | H58: 88,791 | I58: 154,414 | J58: =SUM($I58:I$125) -> 4,428,803 | K58: 0.000
A59: 54 | B59: 88,011 | C59: 46,513 | D59: =SUM(C59:$C$125) -> 948,714 | E59: 0.000 | G59: 54 | H59: 88,011 | I59: 154,664 | J59: =SUM($I59:I$125) -> 4,274,389 | K59: 0.000
A60: 55 | B60: 87,165 | C60: 45,525 | D60: =SUM(C60:$C$125) -> 902,202 | E60: 0.000 | G60: 55 | H60: 87,165 | I60: 154,785 | J60: =SUM($I60:I$125) -> 4,119,725 | K60: 0.000
A61: 56 | B61: 86,241 | C61: 44,513 | D61: =SUM(C61:$C$125) -> 856,677 | E61: 0.000 | G61: 56 | H61: 86,241 | I61: 154,751 | J61: =SUM($I61:I$125) -> 3,964,940 | K61: 0.000
A62: 57 | B62: 85,256 | C62: 43,488 | D62: =SUM(C62:$C$125) -> 812,164 | E62: 0.000 | G62: 57 | H62: 85,256 | I62: 154,590 | J62: =SUM($I62:I$125) -> 3,810,188 | K62: 0.000
A63: 58 | B63: 84,211 | C63: 42,451 | D63: =SUM(C63:$C$125) -> 768,676 | E63: 0.000 | G63: 58 | H63: 84,211 | I63: 154,297 | J63: =SUM($I63:I$125) -> 3,655,599 | K63: 0.000
A64: 59 | B64: 83,083 | C64: 41,390 | D64: =SUM(C64:$C$125) -> 726,225 | E64: 0.000 | G64: 59 | H64: 83,083 | I64: 153,828 | J64: =SUM($I64:I$125) -> 3,501,301 | K64: 0.000
A65: 60 | B65: 81,884 | C65: 40,314 | D65: =SUM(C65:$C$125) -> 684,835 | E65: 0.000 | G65: 60 | H65: 81,884 | I65: 153,199 | J65: =SUM($I65:I$125) -> 3,347,473 | K65: 0.000
A66: 61 | B66: 80,602 | C66: 39,217 | D66: =SUM(C66:$C$125) -> 644,520 | E66: 0.000 | G66: 61 | H66: 80,602 | I66: 152,384 | J66: =SUM($I66:I$125) -> 3,194,273 | K66: 0.000
A67: 62 | B67: 79,243 | C67: 38,103 | D67: =SUM(C67:$C$125) -> 605,303 | E67: 0.000 | G67: 62 | H67: 79,243 | I67: 151,387 | J67: =SUM($I67:I$125) -> 3,041,890 | K67: 0.000
A68: 63 | B68: 77,807 | C68: 36,974 | D68: =SUM(C68:$C$125) -> 567,200 | E68: 0.000 | G68: 63 | H68: 77,807 | I68: 150,203 | J68: =SUM($I68:I$125) -> 2,890,503 | K68: 0.000
A69: 64 | B69: 76,295 | C69: =B69/(1+$B$1)^A69 -> 35,829 | D69: =SUM(C69:$C$125) -> 530,226 | E69: =MAX(0,IF(OR(C69=0,D70=0),1,(D70-VLOOKUP($E$2+1,$A$6:$D$124,4,0))/C69)) -> 0.000 | G69: 64 | H69: 76,295 | I69: =H69/(1+$H$1)^G69 -> 148,830 | J69: =SUM($I69:I$125) -> 2,740,300 | K69: =MAX(0,IF(OR(I69=0,J70=0),1,(J70-VLOOKUP($K$2+1,$G$6:$J$124,4,0))/I69)) -> 0.000
A70: 65 | B70: 74,720 | C70: 34,678 | D70: =SUM(C70:$C$125) -> 494,397 | E70: 0.000 | G70: 65 | H70: 74,720 | I70: 147,288 | J70: =SUM($I70:I$125) -> 2,591,469 | K70: 0.000
A71: 66 | B71: 73,075 | C71: 33,516 | D71: =SUM(C71:$C$125) -> 459,719 | E71: 0.000 | G71: 66 | H71: 73,075 | I71: 145,557 | J71: =SUM($I71:I$125) -> 2,444,182 | K71: 0.000
A72: 67 | B72: 71,366 | C72: 32,348 | D72: =SUM(C72:$C$125) -> 426,203 | E72: 0.000 | G72: 67 | H72: 71,366 | I72: 143,645 | J72: =SUM($I72:I$125) -> 2,298,625 | K72: 0.000
A73: 68 | B73: 69,559 | C73: 31,159 | D73: =SUM(C73:$C$125) -> 393,855 | E73: 0.000 | G73: 68 | H73: 69,559 | I73: 141,477 | J73: =SUM($I73:I$125) -> 2,154,980 | K73: 0.000
A74: 69 | B74: 67,655 | C74: 29,950 | D74: =SUM(C74:$C$125) -> 362,696 | E74: 0.000 | G74: 69 | H74: 67,655 | I74: 139,049 | J74: =SUM($I74:I$125) -> 2,013,503 | K74: 0.000
A75: 70 | B75: 65,649 | C75: 28,721 | D75: =SUM(C75:$C$125) -> 332,746 | E75: 0.000 | G75: 70 | H75: 65,649 | I75: 136,342 | J75: =SUM($I75:I$125) -> 1,874,454 | K75: 0.000
A76: 71 | B76: 63,543 | C76: 27,473 | D76: =SUM(C76:$C$125) -> 304,025 | E76: 0.000 | G76: 71 | H76: 63,543 | I76: 133,353 | J76: =SUM($I76:I$125) -> 1,738,112 | K76: 0.000
A77: 72 | B77: 61,285 | C77: 26,186 | D77: =SUM(C77:$C$125) -> 276,552 | E77: 0.000 | G77: 72 | H77: 61,285 | I77: 129,964 | J77: =SUM($I77:I$125) -> 1,604,759 | K77: 0.000
A78: 73 | B78: 58,911 | C78: 24,876 | D78: =SUM(C78:$C$125) -> 250,366 | E78: 0.000 | G78: 73 | H78: 58,911 | I78: 126,241 | J78: =SUM($I78:I$125) -> 1,474,795 | K78: 0.000
A79: 74 | B79: 56,416 | C79: 23,543 | D79: =SUM(C79:$C$125) -> 225,491 | E79: 0.000 | G79: 74 | H79: 56,416 | I79: 122,163 | J79: =SUM($I79:I$125) -> 1,348,554 | K79: 0.000
A80: 75 | B80: 53,818 | C80: 22,195 | D80: =SUM(C80:$C$125) -> 201,948 | E80: 0.000 | G80: 75 | H80: 53,818 | I80: 117,761 | J80: =SUM($I80:I$125) -> 1,226,390 | K80: 0.000
A81: 76 | B81: 51,086 | C81: 20,821 | D81: =SUM(C81:$C$125) -> 179,753 | E81: 0.000 | G81: 76 | H81: 51,086 | I81: 112,956 | J81: =SUM($I81:I$125) -> 1,108,630 | K81: 0.000
A82: 77 | B82: 48,251 | C82: 19,434 | D82: =SUM(C82:$C$125) -> 158,932 | E82: 0.000 | G82: 77 | H82: 48,251 | I82: 107,807 | J82: =SUM($I82:I$125) -> 995,674 | K82: 0.000
A83: 78 | B83: 45,284 | C83: 18,025 | D83: =SUM(C83:$C$125) -> 139,498 | E83: 0.000 | G83: 78 | H83: 45,284 | I83: 102,240 | J83: =SUM($I83:I$125) -> 887,866 | K83: 0.000
A84: 79 | B84: 42,203 | C84: 16,602 | D84: =SUM(C84:$C$125) -> 121,473 | E84: 0.000 | G84: 79 | H84: 42,203 | I84: 96,284 | J84: =SUM($I84:I$125) -> 785,627 | K84: 0.000
A85: 80 | B85: 39,041 | C85: 15,177 | D85: =SUM(C85:$C$125) -> 104,871 | E85: 0.000 | G85: 80 | H85: 39,041 | I85: 90,005 | J85: =SUM($I85:I$125) -> 689,343 | K85: 0.000
A86: 81 | B86: 35,824 | C86: 13,763 | D86: =SUM(C86:$C$125) -> 89,693 | E86: 0.000 | G86: 81 | H86: 35,824 | I86: 83,455 | J86: =SUM($I86:I$125) -> 599,338 | K86: 0.000
A87: 82 | B87: 32,518 | C87: 12,347 | D87: =SUM(C87:$C$125) -> 75,930 | E87: 0.000 | G87: 82 | H87: 32,518 | I87: 76,549 | J87: =SUM($I87:I$125) -> 515,883 | K87: 0.000
A88: 83 | B88: 29,220 | C88: 10,964 | D88: =SUM(C88:$C$125) -> 63,584 | E88: 0.000 | G88: 83 | H88: 29,220 | I88: 69,507 | J88: =SUM($I88:I$125) -> 439,334 | K88: 0.000
A89: 84 | B89: 25,962 | C89: 9,627 | D89: =SUM(C89:$C$125) -> 52,620 | E89: 0.000 | G89: 84 | H89: 25,962 | I89: 62,405 | J89: =SUM($I89:I$125) -> 369,828 | K89: 0.000
A90: 85 | B90: 22,780 | C90: 8,348 | D90: =SUM(C90:$C$125) -> 42,992 | E90: 0.000 | G90: 85 | H90: 22,780 | I90: 55,331 | J90: =SUM($I90:I$125) -> 307,422 | K90: 0.000
A91: 86 | B91: 19,725 | C91: 7,144 | D91: =SUM(C91:$C$125) -> 34,644 | E91: 0.000 | G91: 86 | H91: 19,725 | I91: 48,414 | J91: =SUM($I91:I$125) -> 252,091 | K91: 0.000
A92: 87 | B92: 16,843 | C92: 6,028 | D92: =SUM(C92:$C$125) -> 27,501 | E92: 0.000 | G92: 87 | H92: 16,843 | I92: 41,774 | J92: =SUM($I92:I$125) -> 203,678 | K92: 0.000
A93: 88 | B93: 14,133 | C93: 4,999 | D93: =SUM(C93:$C$125) -> 21,472 | E93: 0.000 | G93: 88 | H93: 14,133 | I93: 35,420 | J93: =SUM($I93:I$125) -> 161,904 | K93: 0.000
A94: 89 | B94: 11,625 | C94: 4,064 | D94: =SUM(C94:$C$125) -> 16,473 | E94: 0.000 | G94: 89 | H94: 11,625 | I94: 29,441 | J94: =SUM($I94:I$125) -> 126,484 | K94: 0.000
A95: 90 | B95: 9,389 | C95: 3,243 | D95: =SUM(C95:$C$125) -> 12,410 | E95: 0.000 | G95: 90 | H95: 9,389 | I95: 24,027 | J95: =SUM($I95:I$125) -> 97,043 | K95: 0.000
A96: 91 | B96: 7,438 | C96: 2,539 | D96: =SUM(C96:$C$125) -> 9,166 | E96: 0.000 | G96: 91 | H96: 7,438 | I96: 19,234 | J96: =SUM($I96:I$125) -> 73,016 | K96: 0.000
A97: 92 | B97: 5,763 | C97: 1,944 | D97: =SUM(C97:$C$125) -> 6,627 | E97: 0.000 | G97: 92 | H97: 5,763 | I97: 15,059 | J97: =SUM($I97:I$125) -> 53,781 | K97: 0.000
A98: 93 | B98: 4,350 | C98: 1,450 | D98: =SUM(C98:$C$125) -> 4,682 | E98: 0.000 | G98: 93 | H98: 4,350 | I98: 11,486 | J98: =SUM($I98:I$125) -> 38,722 | K98: 0.000
A99: 94 | B99: 3,211 | C99: 1,058 | D99: =SUM(C99:$C$125) -> 3,232 | E99: 0.000 | G99: 94 | H99: 3,211 | I99: 8,568 | J99: =SUM($I99:I$125) -> 27,236 | K99: 0.000
A100: 95 | B100: 2,315 | C100: 754 | D100: =SUM(C100:$C$125) -> 2,174 | E100: 0.000 | G100: 95 | H100: 2,315 | I100: 6,242 | J100: =SUM($I100:I$125) -> 18,668 | K100: 0.000
A101: 96 | B101: 1,635 | C101: 526 | D101: =SUM(C101:$C$125) -> 1,420 | E101: 0.000 | G101: 96 | H101: 1,635 | I101: 4,455 | J101: =SUM($I101:I$125) -> 12,426 | K101: 0.000
A102: 97 | B102: 1,115 | C102: 355 | D102: =SUM(C102:$C$125) -> 894 | E102: 0.000 | G102: 97 | H102: 1,115 | I102: 3,070 | J102: =SUM($I102:I$125) -> 7,972 | K102: 0.000
A103: 98 | B103: 740 | C103: 233 | D103: =SUM(C103:$C$125) -> 539 | E103: 0.000 | G103: 98 | H103: 740 | I103: 2,059 | J103: =SUM($I103:I$125) -> 4,902 | K103: 0.000
A104: 99 | B104: 453 | C104: 141 | D104: =SUM(C104:$C$125) -> 307 | E104: 0.000 | G104: 99 | H104: 453 | I104: 1,273 | J104: =SUM($I104:I$125) -> 2,843 | K104: 0.000
A105: 100 | B105: 263 | C105: 81 | D105: =SUM(C105:$C$125) -> 166 | E105: 0.000 | G105: 100 | H105: 263 | I105: 747 | J105: =SUM($I105:I$125) -> 1,570 | K105: 0.000
A106: 101 | B106: 145 | C106: 44 | D106: =SUM(C106:$C$125) -> 85 | E106: 0.000 | G106: 101 | H106: 145 | I106: 416 | J106: =SUM($I106:I$125) -> 822 | K106: 0.000
A107: 102 | B107: 76 | C107: 23 | D107: =SUM(C107:$C$125) -> 41 | E107: 0.000 | G107: 102 | H107: 76 | I107: 220 | J107: =SUM($I107:I$125) -> 406 | K107: 0.000
A108: 103 | B108: 37 | C108: 11 | D108: =SUM(C108:$C$125) -> 19 | E108: 0.000 | G108: 103 | H108: 37 | I108: 108 | J108: =SUM($I108:I$125) -> 186 | K108: 0.000
A109: 104 | B109: 17 | C109: 5 | D109: =SUM(C109:$C$125) -> 8 | E109: 0.000 | G109: 104 | H109: 17 | I109: 50 | J109: =SUM($I109:I$125) -> 77 | K109: 0.000
A110: 105 | B110: 7 | C110: 2 | D110: =SUM(C110:$C$125) -> 3 | E110: 0.000 | G110: 105 | H110: 7 | I110: 21 | J110: =SUM($I110:I$125) -> 27 | K110: 0.000
A111: 106 | B111: 2 | C111: 1 | D111: =SUM(C111:$C$125) -> 1 | E111: 1.000 | G111: 106 | H111: 2 | I111: 6 | J111: =SUM($I111:I$125) -> 6 | K111: 1.000
A112: 107 | B112: 0 | C112: 0 | D112: =SUM(C112:$C$125) -> 0 | E112: 1.000 | G112: 107 | H112: 0 | I112: 0 | J112: =SUM($I112:I$125) -> 0 | K112: 1.000
A113: 108 | B113: 0 | C113: 0 | D113: =SUM(C113:$C$125) -> 0 | E113: 1.000 | G113: 108 | H113: 0 | I113: 0 | J113: =SUM($I113:I$125) -> 0 | K113: 1.000
A114: 109 | B114: 0 | C114: 0 | D114: =SUM(C114:$C$125) -> 0 | E114: 1.000 | G114: 109 | H114: 0 | I114: 0 | J114: =SUM($I114:I$125) -> 0 | K114: 1.000
A115: 110 | B115: 0 | C115: 0 | D115: =SUM(C115:$C$125) -> 0 | E115: 1.000 | G115: 110 | H115: 0 | I115: 0 | J115: =SUM($I115:I$125) -> 0 | K115: 1.000
A116: 111 | B116: 0 | C116: 0 | D116: =SUM(C116:$C$125) -> 0 | E116: 1.000 | G116: 111 | H116: 0 | I116: 0 | J116: =SUM($I116:I$125) -> 0 | K116: 1.000
A117: 112 | B117: 0 | C117: 0 | D117: =SUM(C117:$C$125) -> 0 | E117: 1.000 | G117: 112 | H117: 0 | I117: 0 | J117: =SUM($I117:I$125) -> 0 | K117: 1.000
A118: 113 | B118: 0 | C118: 0 | D118: =SUM(C118:$C$125) -> 0 | E118: 1.000 | G118: 113 | H118: 0 | I118: 0 | J118: =SUM($I118:I$125) -> 0 | K118: 1.000
A119: 114 | B119: 0 | C119: 0 | D119: =SUM(C119:$C$125) -> 0 | E119: 1.000 | G119: 114 | H119: 0 | I119: 0 | J119: =SUM($I119:I$125) -> 0 | K119: 1.000
A120: 115 | B120: 0 | C120: 0 | D120: =SUM(C120:$C$125) -> 0 | E120: 1.000 | G120: 115 | H120: 0 | I120: 0 | J120: =SUM($I120:I$125) -> 0 | K120: 1.000
A121: 116 | B121: 0 | C121: 0 | D121: =SUM(C121:$C$125) -> 0 | E121: 1.000 | G121: 116 | H121: 0 | I121: 0 | J121: =SUM($I121:I$125) -> 0 | K121: 1.000
A122: 117 | B122: 0 | C122: 0 | D122: =SUM(C122:$C$125) -> 0 | E122: 1.000 | G122: 117 | H122: 0 | I122: 0 | J122: =SUM($I122:I$125) -> 0 | K122: 1.000
A123: 118 | B123: 0 | C123: 0 | D123: =SUM(C123:$C$125) -> 0 | E123: 1.000 | G123: 118 | H123: 0 | I123: 0 | J123: =SUM($I123:I$125) -> 0 | K123: 1.000
A124: 119 | B124: 0 | C124: 0 | D124: =SUM(C124:$C$125) -> 0 | E124: 1.000 | G124: 119 | H124: 0 | I124: 0 | J124: =SUM($I124:I$125) -> 0 | K124: 1.000
A125: 120 | B125: 0 | C125: 0 | D125: =SUM(C125:$C$125) -> 0 | E125: 1.000 | G125: 120 | H125: 0 | I125: 0 | J125: =SUM($I125:I$125) -> 0 | K125: 1.000
A126: 121 | B126: 0 | C126: 0 | D126: =SUM(C$125:$C126) -> 0 | E126: 1.000 | G126: 121 | H126: 0 | I126: 0 | J126: =SUM($I$125:I126) -> 0 | K126: 1.000
A127: 122 | B127: 0 | C127: 0 | D127: =SUM(C$125:$C127) -> 0 | E127: 1.000 | G127: 122 | H127: 0 | I127: 0 | J127: =SUM($I$125:I127) -> 0 | K127: 1.000
A128: =A127+1 -> 123 | B128: 0 | C128: 0 | D128: =SUM(C$125:$C128) -> 0 | E128: 1.000 | G128: =G127+1 -> 123 | H128: 0 | I128: =H128/(1+$B$1)^G128 -> 0 | J128: =SUM($C$125:I128) -> 490 | K128: =MAX(0,IF(OR(I128=0,J129=0),1,(J129-VLOOKUP($E$2+1,$A$6:$D$124,4,0))/I128)) -> 1.000
A129: =A128+1 -> 124 | B129: 0 | C129: 0 | D129: =SUM(C$125:$C129) -> 0 | E129: 1.000 | G129: =G128+1 -> 124 | H129: 0 | I129: 0 | J129: =SUM($C$125:I129) -> 615 | K129: 1.000
A130: =A129+1 -> 125 | B130: 0 | C130: 0 | D130: =SUM(C$125:$C130) -> 0 | E130: 1.000 | G130: =G129+1 -> 125 | H130: 0 | I130: 0 | J130: =SUM($C$125:I130) -> 741 | K130: 1.000
A131: 126 | B131: 0 | C131: 0 | D131: =SUM(C$125:$C131) -> 0 | E131: 1.000 | G131: 126 | H131: 0 | I131: 0 | J131: =SUM($C$125:I131) -> 868 | K131: 1.000
A132: 127 | B132: 0 | C132: 0 | D132: =SUM(C$125:$C132) -> 0 | E132: 1.000 | G132: 127 | H132: 0 | I132: 0 | J132: =SUM($C$125:I132) -> 996 | K132: 1.000
A133: 128 | B133: 0 | C133: =B133/(1+$B$1)^A133 -> 0 | D133: =SUM(C$125:$C133) -> 0 | E133: =MAX(0,IF(OR(C133=0,D134=0),1,(D134-VLOOKUP($E$2+1,$A$6:$D$124,4,0))/C133)) -> 1.000 | G133: 128 | H133: 0 | I133: 0 | J133: =SUM($C$125:I133) -> 1,125 | K133: 1.000
A134: 129 | B134: 0 | C134: 0 | D134: =SUM(C$125:$C134) -> 0 | E134: 1.000 | G134: 129 | H134: 0 | I134: 0 | J134: =SUM($C$125:I134) -> 1,255 | K134: 1.000
A135: 130 | B135: 0 | C135: 0 | D135: =SUM(C$125:$C135) -> 0 | E135: 1.000 | G135: 130 | H135: 0 | I135: 0 | J135: =SUM($C$125:I135) -> 1,386 | K135: 1.000
A136: 131 | B136: 0 | C136: 0 | D136: =SUM(C$125:$C136) -> 0 | E136: 1.000 | G136: 131 | H136: 0 | I136: 0 | J136: =SUM($C$125:I136) -> 1,518 | K136: 1.000
A137: 132 | B137: 0 | C137: 0 | D137: =SUM(C$125:$C137) -> 0 | E137: 1.000 | G137: 132 | H137: 0 | I137: 0 | J137: =SUM($C$125:I137) -> 1,651 | K137: 1.000
A138: 133 | B138: 0 | C138: 0 | D138: 0 | E138: 1.000 | G138: 133 | H138: 0 | I138: 0 | J138: 0 | K138: 1.000
A139: 134 | B139: 0 | C139: 0 | D139: 0 | E139: 1.000 | G139: 134 | H139: 0 | I139: 0 | J139: 0 | K139: 1.000
A140: 135 | B140: 0 | C140: 0 | D140: 0 | E140: 1.000 | G140: 135 | H140: 0 | I140: 0 | J140: 0 | K140: 1.000
A141: 136 | B141: 0 | C141: 0 | D141: 0 | E141: 1.000 | G141: 136 | H141: 0 | I141: 0 | J141: 0 | K141: 1.000
A142: 137 | B142: 0 | C142: 0 | D142: 0 | E142: 1.000 | G142: 137 | H142: 0 | I142: 0 | J142: 0 | K142: 1.000
A143: 138 | B143: 0 | C143: 0 | D143: 0 | E143: 1.000 | G143: 138 | H143: 0 | I143: 0 | J143: 0 | K143: 1.000
A144: 139 | B144: 0 | C144: 0 | D144: 0 | E144: 1.000 | G144: 139 | H144: 0 | I144: 0 | J144: 0 | K144: 1.000
A145: 140 | B145: 0 | C145: 0 | D145: 0 | E145: 1.000 | G145: 140 | H145: 0 | I145: 0 | J145: 0 | K145: 1.000
A146: 141 | B146: 0 | C146: 0 | D146: 0 | E146: 1.000 | G146: 141 | H146: 0 | I146: 0 | J146: 0 | K146: 1.000
A147: 142 | B147: 0 | C147: 0 | D147: 0 | E147: 1.000 | G147: 142 | H147: 0 | I147: 0 | J147: 0 | K147: 1.000
A148: 143 | B148: 0 | C148: 0 | D148: 0 | E148: 1.000 | G148: 143 | H148: 0 | I148: 0 | J148: 0 | K148: 1.000
A149: 144 | B149: 0 | C149: 0 | D149: 0 | E149: 1.000 | G149: 144 | H149: 0 | I149: 0 | J149: 0 | K149: 1.000
A150: 145 | B150: 0 | C150: 0 | D150: 0 | E150: 1.000 | G150: 145 | H150: 0 | I150: 0 | J150: 0 | K150: 1.000
A151: 146 | B151: 0 | C151: 0 | D151: 0 | E151: 1.000 | G151: 146 | H151: 0 | I151: 0 | J151: 0 | K151: 1.000
A152: 147 | B152: 0 | C152: 0 | D152: 0 | E152: 1.000 | G152: 147 | H152: 0 | I152: 0 | J152: 0 | K152: 1.000
A153: 148 | B153: 0 | C153: 0 | D153: 0 | E153: 1.000 | G153: 148 | H153: 0 | I153: 0 | J153: 0 | K153: 1.000
A154: 149 | B154: 0 | C154: 0 | D154: 0 | E154: 1.000 | G154: 149 | H154: 0 | I154: 0 | J154: 0 | K154: 1.000
A155: 150 | B155: 0 | C155: 0 | D155: 0 | E155: 1.000 | G155: 150 | H155: 0 | I155: 0 | J155: 0 | K155: 1.000
A156: 151 | B156: 0 | C156: 0 | D156: 0 | E156: 1.000 | G156: 151 | H156: 0 | I156: 0 | J156: 0 | K156: 1.000
A157: 152 | B157: 0 | C157: 0 | D157: 0 | E157: 1.000 | G157: 152 | H157: 0 | I157: 0 | J157: 0 | K157: 1.000
A158: 153 | B158: 0 | C158: 0 | D158: 0 | E158: 1.000 | G158: 153 | H158: 0 | I158: 0 | J158: 0 | K158: 1.000
A159: 154 | B159: 0 | C159: 0 | D159: 0 | E159: 1.000 | G159: 154 | H159: 0 | I159: 0 | J159: 0 | K159: 1.000
A160: 155 | B160: 0 | C160: 0 | D160: 0 | E160: 1.000 | G160: 155 | H160: 0 | I160: 0 | J160: 0 | K160: 1.000
A161: 156 | B161: 0 | C161: 0 | D161: 0 | E161: 1.000 | G161: 156 | H161: 0 | I161: 0 | J161: 0 | K161: 1.000
A162: 157 | B162: 0 | C162: 0 | D162: 0 | E162: 1.000 | G162: 157 | H162: 0 | I162: 0 | J162: 0 | K162: 1.000
A163: 158 | B163: 0 | C163: 0 | D163: 0 | E163: 1.000 | G163: 158 | H163: 0 | I163: 0 | J163: 0 | K163: 1.000
A164: 159 | B164: 0 | C164: 0 | D164: 0 | E164: 1.000 | G164: 159 | H164: 0 | I164: 0 | J164: 0 | K164: 1.000
A165: 160 | B165: 0 | C165: 0 | D165: 0 | E165: 1.000 | G165: 160 | H165: 0 | I165: 0 | J165: 0 | K165: 1.000
A166: 161 | B166: 0 | C166: 0 | D166: 0 | E166: 1.000 | G166: 161 | H166: 0 | I166: 0 | J166: 0 | K166: 1.000
A167: 162 | B167: 0 | C167: 0 | D167: 0 | E167: 1.000 | G167: 162 | H167: 0 | I167: 0 | J167: 0 | K167: 1.000
A168: 163 | B168: 0 | C168: 0 | D168: 0 | E168: 1.000 | G168: 163 | H168: 0 | I168: 0 | J168: 0 | K168: 1.000
A169: 164 | B169: 0 | C169: 0 | D169: 0 | E169: 1.000 | G169: 164 | H169: 0 | I169: 0 | J169: 0 | K169: 1.000
A170: 165 | B170: 0 | C170: 0 | D170: 0 | E170: 1.000 | G170: 165 | H170: 0 | I170: 0 | J170: 0 | K170: 1.000
A171: 166 | B171: 0 | C171: 0 | D171: 0 | E171: 1.000 | G171: 166 | H171: 0 | I171: 0 | J171: 0 | K171: 1.000
A172: 167 | B172: 0 | C172: 0 | D172: 0 | E172: 1.000 | G172: 167 | H172: 0 | I172: 0 | J172: 0 | K172: 1.000
A173: 168 | B173: 0 | C173: 0 | D173: 0 | E173: 1.000 | G173: 168 | H173: 0 | I173: 0 | J173: 0 | K173: 1.000
A174: 169 | B174: 0 | C174: 0 | D174: 0 | E174: 1.000 | G174: 169 | H174: 0 | I174: 0 | J174: 0 | K174: 1.000
A175: 170 | B175: 0 | C175: 0 | D175: 0 | E175: 1.000 | G175: 170 | H175: 0 | I175: 0 | J175: 0 | K175: 1.000
A176: 171 | B176: 0 | C176: 0 | D176: 0 | E176: 1.000 | G176: 171 | H176: 0 | I176: 0 | J176: 0 | K176: 1.000
A177: 172 | B177: 0 | C177: 0 | D177: 0 | E177: 1.000 | G177: 172 | H177: 0 | I177: 0 | J177: 0 | K177: 1.000
A178: 173 | B178: 0 | C178: 0 | D178: 0 | E178: 1.000 | G178: 173 | H178: 0 | I178: 0 | J178: 0 | K178: 1.000
A179: 174 | B179: 0 | C179: 0 | D179: 0 | E179: 1.000 | G179: 174 | H179: 0 | I179: 0 | J179: 0 | K179: 1.000
A180: 175 | B180: 0 | C180: 0 | D180: 0 | E180: 1.000 | G180: 175 | H180: 0 | I180: 0 | J180: 0 | K180: 1.000
A181: 176 | B181: 0 | C181: 0 | D181: 0 | E181: 1.000 | G181: 176 | H181: 0 | I181: 0 | J181: 0 | K181: 1.000
A182: 177 | B182: 0 | C182: 0 | D182: 0 | E182: 1.000 | G182: 177 | H182: 0 | I182: 0 | J182: 0 | K182: 1.000
A183: 178 | B183: 0 | C183: 0 | D183: 0 | E183: 1.000 | G183: 178 | H183: 0 | I183: 0 | J183: 0 | K183: 1.000
A184: 179 | B184: 0 | C184: 0 | D184: 0 | E184: 1.000 | G184: 179 | H184: 0 | I184: 0 | J184: 0 | K184: 1.000
A185: 180 | B185: 0 | C185: 0 | D185: 0 | E185: 1.000 | G185: 180 | H185: 0 | I185: 0 | J185: 0 | K185: 1.000
A186: 181 | B186: 0 | C186: 0 | D186: 0 | E186: 1.000 | G186: 181 | H186: 0 | I186: 0 | J186: 0 | K186: 1.000
A187: 182 | B187: 0 | C187: 0 | D187: 0 | E187: 1.000 | G187: 182 | H187: 0 | I187: 0 | J187: 0 | K187: 1.000
A188: 183 | B188: 0 | C188: 0 | D188: 0 | E188: 1.000 | G188: 183 | H188: 0 | I188: 0 | J188: 0 | K188: 1.000
A189: 184 | B189: 0 | C189: 0 | D189: 0 | E189: 1.000 | G189: 184 | H189: 0 | I189: 0 | J189: 0 | K189: 1.000
A190: 185 | B190: 0 | C190: 0 | D190: 0 | E190: 1.000 | G190: 185 | H190: 0 | I190: 0 | J190: 0 | K190: 1.000
A191: 186 | B191: 0 | C191: 0 | D191: 0 | E191: 1.000 | G191: 186 | H191: 0 | I191: 0 | J191: 0 | K191: 1.000
A192: 187 | B192: 0 | C192: 0 | D192: 0 | E192: 1.000 | G192: 187 | H192: 0 | I192: 0 | J192: 0 | K192: 1.000
A193: 188 | B193: 0 | C193: 0 | D193: 0 | E193: 1.000 | G193: 188 | H193: 0 | I193: 0 | J193: 0 | K193: 1.000
A194: =A193+1 -> 189 | B194: 0 | C194: 0 | D194: 0 | E194: 1.000 | G194: =G193+1 -> 189 | H194: 0 | I194: 0 | J194: 0 | K194: 1.000
A195: 190 | B195: 0 | C195: 0 | D195: 0 | E195: 1.000 | G195: 190 | H195: 0 | I195: 0 | J195: 0 | K195: 1.000
